Workbook

Sheet Sine -- Radians
B1: Approximating the Sine Function
B2: with Newton Interpolation Polynomials
B4: This DIGMath module lets you investigate how
B5: Newton quadratic Interpolation Polynomials
B6: are used to approximate
B7: the sine function y = sin x
B8: with x in radians on [0, p/4].
A10: The three interpolating points are x = x0, p/8, and x2.
B11: Since Newton's formula requires that the points be uniformly spaced,
B12: the third point x2 is determined by the first point x0 and the center point.
B14: What is the first point x0 (0 to 0.35)? | E14: =F15/100 -> 0
F15: 0 | G15: 127 | M15: Now trace along the curve: x = | N15: =O16*dx0 -> 0.2481858196 | O15: and y = | P15: =LOOKUP(N15,Calculations!D2:D502,Calculations!E2:E502) -> 0.24
O16: 158
B17: Then the third interpolating point x2 is | E17: =PI()/4-x0 -> 0.7853981634
M18: The corresponding error = | N18: =Calculations!B13 -> 0.0030
A23: Click each item below for suggestions and investigations
D24: Item 1
D25: Item 2
D26: Item 3
D27: Item 4
D28: Item 5
A31: To access/download all the DIGMath Apps for College Algebra/Precalculus
A32: Click this link: | C32: DIGMath Modules for College Algebra and Precalculus
A34: Created by: Sheldon P. Gordon & Florence S. Gordon | M34: The maximum error (in absolute value) = | N34: =Calculations!B9 -> 0.00364
A35: Farmingdale State College NYIT
A36: Development of this module was supported by the
A37: NSF's Division of Undergraduate Education
A38: under grants DUE-0310123 and DUE-0442160.

Sheet Sine -- Degrees
B1: Approximating the Sine Function
B2: with Newton Interpolation Polynomials
B4: This DIGMath module lets you investigate how
B5: Newton quadratic Interpolation Polynomials
B6: are used to approximate
B7: the sine function y = sin x
B8: with x in degrees on [0°, 45°].
A10: The three interpolating points are x = x0, 22.5°, and x2.
B11: Since Newton's formula requires that the points be uniformly spaced,
B12: the third point x2 is determined by the first point x0 and the center point.
B14: What is the first point x0 (0 to 20°)? | E14: =F15/10 -> 4.3 | F14: °
F15: 43 | G15: 127 | N15: Now trace along the curve: x = | O15: =P16*dxx0 -> 39.5 | P15: and y = | Q15: =LOOKUP(O15,Calculations!M2:M452,Calculations!N2:N452) -> 0.63
P16: 395
B17: Then the third interpolating point x2 is | E17: =45-xx0 -> 40.7 | F17: °
N18: The corresponding error = | O18: =Calculations!K13 -> -0.001
A23: Click each item below for suggestions and investigations
D24: Item 1
D25: Item 2
D26: Item 3
D27: Item 4
D28: Item 5
A31: To access/download all the DIGMath Apps for College Algebra/Precalculus
A32: Click this link: | C32: DIGMath Modules for College Algebra and Precalculus
A34: Created by: Sheldon P. Gordon & Florence S. Gordon | N34: The maximum error (in absolute value) = | O34: =Calculations!K9 -> 0.00331
A35: Farmingdale State College NYIT
A36: Development of this module was supported by the
A37: NSF's Division of Undergraduate Education
A38: under grants DUE-0310123 and DUE-0442160.

Sheet 4 Points - Radians
B1: Approximating the Sine Function
B2: with Newton Interpolation Polynomials
B4: This DIGMath module lets you investigate how
B5: Newton cubic Interpolation Polynomials
B6: are used to approximate
B7: the sine function y = sin x
B8: with x in radians on [0, p/4].
A10: The four interpolating points are x = x0, x1, x2, and x3.
B11: Since Newton's formula requires that the points be uniformly spaced,
B12: the 3rd and 4th points are determined by the first two points x0 and x1.
B14: What is the first point x0 (0 to 0.20)? | E14: =F15/500 -> 0.06
F15: 29 | G15: 127 | L15: Now trace along the curve: x = | M15: =N16*dxxx0 -> 0.3157300617 | N15: and y = | O15: =LOOKUP(M15,Calculations!V2:V502,Calculations!W2:W502) -> 0.31
N16: 201
B17: What is the second point x1 (0.20 to 0.40)? | E17: =0.2+F18/500 -> 0.3 | F17: =IF(xxx0000>PI()/4," That's too big!","") -> 
F18: 50 | G18: 127 | L18: The corresponding error = | M18: =Calculations!T13 -> -0.000006
B20: The third and fourth interpolating points are:
D21: x2 = | E21: =E$17+(E$17-E$14) -> 0.54
D22: x3 = | E22: =E$17+2*(E$17-E$14) -> 0.78
A26: Click each item below for suggestions and investigations
D27: Item 1
D28: Item 2
D29: Item 3
D30: Item 4
D31: Item 5
A34: To access/download all the DIGMath Apps for College Algebra/Precalculus | L34: The maximum error (in absolute value) = | M34: =Calculations!T9 -> 0.000101
A35: Click this link: | C35: DIGMath Modules for College Algebra and Precalculus
A37: Created by: Sheldon P. Gordon & Florence S. Gordon
A38: Farmingdale State College NYIT
A39: Development of this module was supported by the
A40: NSF's Division of Undergraduate Education
A41: under grants DUE-0310123 and DUE-0442160.

Sheet 4 Points - Degrees
B1: Approximating the Sine Function
B2: with Newton Interpolation Polynomials
B4: This DIGMath module lets you investigate how
B5: Newton cubic Interpolation Polynomials
B6: are used to approximate
B7: the sine function y = sin x
B8: with x in degrees on [0°, 45°].
A10: The four interpolating points are x = x0, x1, x2, and x3.
B11: Since Newton's formula requires that the points be uniformly spaced,
B12: the 3rd and 4th points are determined by the first two points x0 and x1.
B14: What is the first point x0 (0 to 11.25°)? | E14: =G15/4 -> 2.00 | F14: °
G15: 8 | H15: 127 | M15: Now trace along the curve: x = | N15: =O16*dxxxx0 -> 28.3 | O15: ° and y = | P15: =LOOKUP(N15,Calculations!AE2:AE452,Calculations!AF2:AF452) -> 0.47
O16: 283
B17: What is the second point x1 (11.5° to 22.5°)? | E17: =G18/10 -> 15.5 | F17: ° | G17: =IF(xxxx0000>45," That's too big!","") -> 
G18: 155 | H18: 127 | M18: The corresponding error = | N18: =Calculations!AC13 -> -0.000006
B20: The third and fourth interpolating points are:
D21: x2 = | E21: =E$17+(E$17-E$14) -> 29.00 | F21: °
D22: x3 = | E22: =E$17+2*(E$17-E$14) -> 42.50 | F22: °
A26: Click each item below for suggestions and investigations
D27: Item 1
D28: Item 2
D29: Item 3
D30: Item 4
D31: Item 5
A34: To access/download all the DIGMath Apps for College Algebra/Precalculus | M34: The maximum error (in absolute value) = | N34: =Calculations!AC9 -> 0.000088
A35: Click this link: | C35: DIGMath Modules for College Algebra and Precalculus
A37: Created by: Sheldon P. Gordon & Florence S. Gordon
A38: Farmingdale State College NYIT
A39: Development of this module was supported by the
A40: NSF's Division of Undergraduate Education
A41: under grants DUE-0310123 and DUE-0442160.

Sheet Calculations
B1: dx0 = | C1: =PI()/4/500 -> 0.001570796327 | D1: x | E1: Sine | F1: L(x) | G1: Error | H1: ABS(Error) | K1: dxx0 = | L1: =45/450 -> 0.1 | M1: x | N1: Sine | O1: L(x) | P1: Error | Q1: ABS(Error) | T1: dxxx0 = | U1: =PI()/4/500 -> 0.001570796327 | V1: x | W1: Sine | X1: L3(x) | Y1: Error | Z1: ABS(Error) | AC1: dxxxx0 = | AD1: =45/450 -> 0.1 | AE1: x | AF1: Sine | AG1: L3(x) | AH1: Error | AI1: ABS(Error)
B2: dx = | C2: =x00-B4 -> 0.3926990817 | D2: =0 -> 0 | E2: =SIN(x) -> 0 | F2: =y0+dy*(x-x0)/dx+d2y*(x-x0)*(x-x0-dx)/2/dx^2 -> 0 | G2: =F2-E2 -> 0 | H2: =ABS(G2) -> 0 | K2: dxx = | L2: =K5-K4 -> 18.2 | M2: 0 | N2: =SIN(xx*PI()/180) -> 0 | O2: =yy0+dyy*(xx-xx0)/dxx+d2yy*(xx-xx0)*(xx-xx0-dxx)/2/dxx^2 -> -0.003312651453 | P2: =O2-N2 -> -0.003312651453 | Q2: =ABS(P2) -> 0.003312651453 | T2: dxxx = | U2: =T5-T4 -> 0.242 | V2: =0 -> 0 | W2: =SIN(xxx) -> 0 | X2: =yyy0+dyyy0*(xxx-xxx0)/dxxx+d2yyy0*(xxx-xxx0)*(xxx-xxx0-dxxx)/2/dxxx^2+d3yyy0*(xxx-xxx0)*(xxx-xxx0-dxxx)*(xxx-xxx0-2*dxxx)/6/dxxx^3 -> -0.0001010557638 | Y2: =X2-W2 -> -0.0001010557638 | Z2: =ABS(Y2) -> 0.0001010557638 | AC2: dxxxx = | AD2: =AC5-AC4 -> 13.5 | AE2: 0 | AF2: =SIN(xxxx*PI()/180) -> 0 | AG2: =yyyy0+dyyyy0*(xxxx-xxxx0)/dxxxx+d2yyyy0*(xxxx-xxxx0)*(xxxx-xxxx0-dxxxx)/2/dxxxx^2+d3yyyy0*(xxxx-xxxx0)*(xxxx-xxxx0-dxxxx)*(xxxx-xxxx0-2*dxxxx)/6/dxxxx^3 -> -4.485112982e-05 | AH2: =AG2-AF2 -> -4.485112982e-05 | AI2: =ABS(AH2) -> 4.485112982e-05
B3: x | C3: y | D3: =D2+dx0 -> 0.001570796327 | E3: 0.001570795681 | F3: 0.001646787816 | G3: =F3-E3 -> 7.599213505e-05 | H3: =ABS(G3) -> 7.599213505e-05 | K3: xx | L3: yy | M3: =M2+dxx0 -> 0.1 | N3: 0.001745328366 | O3: -0.001467646746 | P3: =O3-N3 -> -0.003212975112 | Q3: =ABS(P3) -> 0.003212975112 | T3: x | U3: y | V3: =V2+dx0 -> 0.001570796327 | W3: 0.001570795681 | X3: 0.001473381418 | Y3: =X3-W3 -> -9.741426269e-05 | Z3: =ABS(Y3) -> 9.741426269e-05 | AC3: xx | AD3: yy | AE3: =AE2+dxxxx0 -> 0.1 | AF3: 0.001745328366 | AG3: 0.001703193422 | AH3: =AG3-AF3 -> -4.213494409e-05 | AI3: =ABS(AH3) -> 4.213494409e-05
A4: 1 | B4: =x0 -> 0 | C4: =SIN(x0) -> 0 | D4: 0.003141592654 | E4: 0.003141587486 | F4: 0.00329264347 | G4: 0.0001510559845 | H4: 0.0001510559845 | J4: 1 | K4: =xx0 -> 4.3 | L4: =SIN(xx0*PI()/180) -> 0.07497872683 | M4: 0.2 | N4: 0.003490651415 | O4: 0.0003762020091 | P4: -0.003114449406 | Q4: 0.003114449406 | S4: 1 | T4: =xxx0 -> 0.058 | U4: =SIN(xxx0) -> 0.0579674868 | V4: 0.003141592654 | W4: 0.003141587486 | X4: 0.003047760128 | Y4: -9.382735771e-05 | Z4: 9.382735771e-05 | AB4: 1 | AC4: =xxxx0 -> 2 | AD4: =SIN(xxxx0*PI()/180) -> 0.0348994967 | AE4: 0.2 | AF4: 0.003490651415 | AG4: 0.003451180224 | AH4: -3.94711913e-05 | AI4: 3.94711913e-05
A5: 2 | B5: =PI()/8 -> 0.3926990817 | C5: =SIN(B5) -> 0.3826834324 | D5: 0.00471238898 | E5: 0.004712371539 | F5: 0.004937566964 | G5: 0.0002251954243 | H5: 0.0002251954243 | J5: 2 | K5: 22.5 | L5: =SIN(K5*PI()/180) -> 0.3826834324 | M5: 0.3 | N5: 0.005235963831 | O5: 0.002218894813 | P5: -0.003017069018 | Q5: 0.003017069018 | S5: 2 | T5: =xxx00 -> 0.3 | U5: =SIN(xxx00) -> 0.2955202067 | V5: 0.00471238898 | W5: 0.004712371539 | X5: 0.004622076855 | Y5: -9.029468463e-05 | Z5: 9.029468463e-05 | AB5: 2 | AC5: =xxxx00 -> 15.5 | AD5: =SIN(AC5*PI()/180) -> 0.2672383761 | AE5: 0.3 | AF5: 0.005235963831 | AG5: 0.00519910439 | AH5: -3.685944154e-05 | AI5: 3.685944154e-05
A6: 3 | B6: =x000 -> 0.7853981634 | C6: =SIN(x000) -> 0.7071067812 | D6: 0.006283185307 | E6: 0.006283143966 | F6: 0.006581558295 | G6: 0.0002984143299 | H6: 0.0002984143299 | J6: 3 | K6: =xx000 -> 40.7 | L6: =SIN(K6*PI()/180) -> 0.6520984038 | M6: 0.4 | N6: 0.006981260298 | O6: 0.004060431666 | P6: -0.002920828632 | Q6: 0.002920828632 | S6: 3 | T6: =xxx000 -> 0.542 | U6: =SIN(xxx000) -> 0.5158503796 | V6: 0.006283185307 | W6: 0.006283143966 | X6: 0.006196328086 | Y6: -8.681587925e-05 | Z6: 8.681587925e-05 | AB6: 3 | AC6: =xxxx000 -> 29 | AD6: =SIN(AC6*PI()/180) -> 0.4848096202 | AE6: 0.4 | AF6: 0.006981260298 | AG6: 0.006946961033 | AH6: -3.429926495e-05 | AI6: 3.429926495e-05
D7: 0.007853981634 | E7: 0.007853900889 | F7: 0.008224617466 | G7: 0.0003707165773 | H7: 0.0003707165773 | M7: 0.5 | N7: 0.008726535498 | O7: 0.005900812567 | P7: -0.002825722932 | Q7: 0.002825722932 | S7: 4 | T7: =xxx0000 -> 0.784 | U7: =SIN(xxx0000) -> 0.7061174395 | V7: 0.007853981634 | W7: 0.007853900889 | X7: 0.007770510311 | Y7: -8.339057737e-05 | Z7: 8.339057737e-05 | AB7: 4 | AC7: =xxxx0000 -> 42.5 | AD7: =SIN(AC7*PI()/180) -> 0.6755902076 | AE7: 0.5 | AF7: 0.008726535498 | AG7: 0.008694745267 | AH7: -3.179023172e-05 | AI7: 3.179023172e-05
D8: 0.009424777961 | E8: 0.009424638433 | F8: 0.009866744475 | G8: 0.0004421060421 | H8: 0.0004421060421 | M8: 0.6 | N8: 0.01047178412 | O8: 0.007740037517 | P8: -0.0027317466 | Q8: 0.0027317466 | V8: 0.009424777961 | W8: 0.009424638433 | X8: 0.009344620018 | Y8: -8.001841486e-05 | Z8: 8.001841486e-05 | AE8: 0.6 | AF8: 0.01047178412 | AG8: 0.0104424522 | AH8: -2.93319121e-05 | AI8: 2.93319121e-05
A9: MaxError = | B9: =MAX(H2:H502) -> 0.0036362732 | D9: 0.01099557429 | E9: 0.01099535272 | F9: 0.01150793932 | G9: 0.0005125865999 | H9: 0.0005125865999 | J9: MaxError = | K9: =MAX(Q2:Q452) -> 0.003312651453 | M9: 0.7 | N9: 0.01221700084 | O9: 0.009578106515 | P9: -0.00263889432 | Q9: 0.00263889432 | S9: MaxError = | T9: =MAX(Z2:Z502) -> 0.0001010557638 | V9: 0.01099557429 | W9: 0.01099535272 | X9: 0.0109186537 | Y9: -7.66990276e-05 | Z9: 7.66990276e-05 | AB9: MaxError = | AC9: =MAX(AI2:AI452) -> 8.786851377e-05 | AE9: 0.7 | AF9: 0.01221700084 | AG9: 0.01219007696 | AH9: -2.692387641e-05 | AI9: 2.692387641e-05
D10: 0.01256637061 | E10: 0.01256603988 | F10: 0.01314820201 | G10: 0.0005821621263 | H10: 0.0005821621263 | M10: 0.8 | N10: 0.01396218034 | O10: 0.01141501956 | P10: -0.002547160777 | Q10: 0.002547160777 | V10: 0.01256637061 | W10: 0.01256603988 | X10: 0.01249260783 | Y10: -7.343205157e-05 | Z10: 7.343205157e-05 | AE10: 0.8 | AF10: 0.01396218034 | AG10: 0.01393761464 | AH10: -2.45656951e-05 | AI10: 2.45656951e-05
D11: 0.01413716694 | E11: 0.01413669604 | F11: 0.01478753253 | G11: 0.0006508364968 | H11: 0.0006508364968 | M11: 0.9 | N11: 0.01570731731 | O11: 0.01325077666 | P11: -0.002456540654 | Q11: 0.002456540654 | V11: 0.01413716694 | W11: 0.01413669604 | X11: 0.01406647892 | Y11: -7.021712279e-05 | Z11: 7.021712279e-05 | AE11: 0.9 | AF11: 0.01570731731 | AG11: 0.01568506037 | AH11: -2.225693871e-05 | AI11: 2.225693871e-05
A12: Point | D12: 0.01570796327 | E12: 0.01570731731 | F12: 0.0164259309 | G12: 0.0007186135868 | H12: 0.0007186135868 | J12: Point | M12: 1 | N12: 0.01745240644 | O12: 0.0150853778 | P12: -0.002367028636 | Q12: 0.002367028636 | S12: Point | V12: 0.01570796327 | W12: 0.01570731731 | X12: 0.01564026343 | Y12: -6.705387736e-05 | Z12: 6.705387736e-05 | AB12: Point | AE12: 1 | AF12: 0.01745240644 | AG12: 0.01743240926 | AH12: -1.99971779e-05 | AI12: 1.99971779e-05
A13: ='Sine -- Radians'!N15 -> 0.2481858196 | B13: =LOOKUP(A13,D2:D502,G2:G502) -> 0.003007637196 | D13: 0.01727875959 | E13: 0.01727789983 | F13: 0.0180633971 | G13: 0.0007854972718 | H13: 0.0007854972718 | J13: ='Sine -- Degrees'!O15 -> 39.5 | K13: =LOOKUP(J13,M2:M452,P2:P452) -> -0.0006062232955 | M13: 1.1 | N13: 0.0191974424 | O13: 0.01691882299 | P13: -0.002278619405 | Q13: 0.002278619405 | S13: ='4 Points - Radians'!M15 -> 0.3157300617 | T13: =LOOKUP(S13,V2:V502,Y2:Y502) -> -6.26244738e-06 | V13: 0.01727875959 | W13: 0.01727789983 | X13: 0.01721395788 | Y13: -6.394195148e-05 | Z13: 6.394195148e-05 | AB13: ='4 Points - Degrees'!N15 -> 28.3 | AC13: =LOOKUP(AB13,AE2:AE452,AH2:AH452) -> -5.826883186e-06 | AE13: 1.1 | AF13: 0.0191974424 | AG13: 0.01917965642 | AH13: -1.778598349e-05 | AI13: 1.778598349e-05
D14: 0.01884955592 | E14: 0.01884843972 | F14: 0.01969993114 | G14: 0.0008514914269 | H14: 0.0008514914269 | M14: 1.2 | N14: 0.02094241988 | O14: 0.01875111224 | P14: -0.002191307647 | Q14: 0.002191307647 | V14: 0.01884955592 | W14: 0.01884843972 | X14: 0.01878755873 | Y14: -6.088098141e-05 | Z14: 6.088098141e-05 | AE14: 1.2 | AF14: 0.02094241988 | AG14: 0.02092679696 | AH14: -1.562292647e-05 | AI14: 1.562292647e-05
D15: 0.02042035225 | E15: 0.02041893309 | F15: 0.02133553302 | G15: 0.0009165999274 | H15: 0.0009165999274 | M15: 1.3 | N15: 0.02268733357 | O15: 0.02058224553 | P15: -0.002105088047 | Q15: 0.002105088047 | V15: 0.02042035225 | W15: 0.02041893309 | X15: 0.02036106249 | Y15: -5.787060356e-05 | Z15: 5.787060356e-05 | AE15: 1.3 | AF15: 0.02268733357 | AG15: 0.02267382599 | AH15: -1.350757799e-05 | AI15: 1.350757799e-05
A16: Dy0 = | B16: =c00-a00 -> 0.3826834324 | D16: 0.02199114858 | E16: 0.02198937609 | F16: 0.02297020274 | G16: 0.0009808266482 | H16: 0.0009808266482 | J16: Dy0 = | K16: =L5-yy0 -> 0.3077047055 | M16: 1.4 | N16: 0.02443217815 | O16: 0.02241222286 | P16: -0.002019955288 | Q16: 0.002019955288 | S16: Dyyy0 = | T16: =yyy00-yyy0 -> 0.2375527199 | V16: 0.02199114858 | W16: 0.02198937609 | X16: 0.02193446564 | Y16: -5.491045443e-05 | Z16: 5.491045443e-05 | AB16: Dyyyy0 = | AC16: =AD5-yyyy0 -> 0.2323388794 | AE16: 1.4 | AF16: 0.02443217815 | AG16: 0.02442073864 | AH16: -1.143950941e-05 | AI16: 1.143950941e-05
A17: D2y0 = | B17: =b00-2*c00+a00 -> -0.05826008354 | D17: 0.0235619449 | E17: 0.02355976483 | F17: 0.0246039403 | G17: 0.001044175464 | H17: 0.001044175464 | J17: D2y0 = | K17: =L6-2*L5+yy0 -> -0.03828973407 | M17: 1.5 | N17: 0.02617694831 | O17: 0.02424104425 | P17: -0.001935904056 | Q17: 0.001935904056 | S17: D2yyy0 = | T17: =yyy000-2*yyy00+yyy0 -> -0.01722254692 | V17: 0.0235619449 | W17: 0.02355976483 | X17: 0.02350776466 | Y17: -5.200017065e-05 | Z17: 5.200017065e-05 | AB17: D2yyyy0 = | AC17: =AD6-2*AD5+yyyy0 -> -0.01476763521 | AE17: 1.5 | AF17: 0.02617694831 | AG17: 0.02616753002 | AH17: -9.418292279e-06 | AI17: 9.418292279e-06
D18: 0.02513274123 | E18: 0.02513009544 | F18: 0.02623674569 | G18: 0.00110665025 | H18: 0.00110665025 | M18: 1.6 | N18: 0.02792163872 | O18: 0.02606870969 | P18: -0.001852929036 | Q18: 0.001852929036 | S18: D3yyy0 = | T18: =yyy0000-3*yyy000+3*yyy00-yyy0 -> -0.01284056608 | V18: 0.02513274123 | W18: 0.02513009544 | X18: 0.02508095605 | Y18: -4.913938898e-05 | Z18: 4.913938898e-05 | AB18: D3yyyy0 = | AC18: =yyyy0000-3*yyyy000+3*yyyy00-yyyy0 -> -0.01202302159 | AE18: 1.6 | AF18: 0.02792163872 | AG18: 0.02791419523 | AH18: -7.4434984e-06 | AI18: 7.4434984e-06
D19: 0.02670353756 | E19: 0.02670036405 | F19: 0.02786861893 | G19: 0.001168254881 | H19: 0.001168254881 | M19: 1.7 | N19: 0.02966624409 | O19: 0.02789521917 | P19: -0.001771024913 | Q19: 0.001771024913 | V19: 0.02670353756 | W19: 0.02670036405 | X19: 0.0266540363 | Y19: -4.632774632e-05 | Z19: 4.632774632e-05 | AE19: 1.7 | AF19: 0.02966624409 | AG19: 0.02966072939 | AH19: -5.514699802e-06 | AI19: 5.514699802e-06
D20: 0.02827433388 | E20: 0.02827056677 | F20: 0.02949956 | G20: 0.001228993231 | H20: 0.001228993231 | M20: 1.8 | N20: 0.03141075908 | O20: 0.0297205727 | P20: -0.001690186373 | Q20: 0.001690186373 | V20: 0.02827433388 | W20: 0.02827056677 | X20: 0.02822700189 | Y20: -4.356487974e-05 | Z20: 4.356487974e-05 | AE20: 1.8 | AF20: 0.03141075908 | AG20: 0.03140712761 | AH20: -3.631468776e-06 | AI20: 3.631468776e-06
D21: 0.02984513021 | E21: 0.02984069974 | F21: 0.03112956891 | G21: 0.001288869174 | H21: 0.001288869174 | M21: 1.9 | N21: 0.03315517839 | O21: 0.03154477029 | P21: -0.001610408102 | Q21: 0.001610408102 | V21: 0.02984513021 | W21: 0.02984069974 | X21: 0.02979984931 | Y21: -4.085042646e-05 | Z21: 4.085042646e-05 | AE21: 1.9 | AF21: 0.03315517839 | AG21: 0.03315338501 | AH21: -1.793377889e-06 | AI21: 1.793377889e-06
D22: 0.03141592654 | E22: 0.03141075908 | F22: 0.03275864566 | G22: 0.001347886585 | H22: 0.001347886585 | M22: 2 | N22: 0.0348994967 | O22: 0.03336781192 | P22: -0.001531684786 | Q22: 0.001531684786 | V22: 0.03141592654 | W22: 0.03141075908 | X22: 0.03137257505 | Y22: -3.818402386e-05 | Z22: 3.818402386e-05 | AE22: 2 | AF22: 0.0348994967 | AG22: 0.0348994967 | AH22: 0 | AI22: 0
D23: 0.03298672286 | E23: 0.03298074091 | F23: 0.03438679025 | G23: 0.001406049338 | H23: 0.001406049338 | M23: 2.1 | N23: 0.03664370871 | O23: 0.0351896976 | P23: -0.001454011111 | Q23: 0.001454011111 | V23: 0.03298672286 | W23: 0.03298074091 | X23: 0.03294517561 | Y23: -3.556530953e-05 | Z23: 3.556530953e-05 | AE23: 2.1 | AF23: 0.03664370871 | AG23: 0.0366454578 | AH23: 1.749091725e-06 | AI23: 1.749091725e-06
D24: 0.03455751919 | E24: 0.03455064137 | F24: 0.03601400268 | G24: 0.001463361306 | H24: 0.001463361306 | M24: 2.2 | N24: 0.03838780909 | O24: 0.03701042732 | P24: -0.001377381764 | Q24: 0.001377381764 | V24: 0.03455751919 | W24: 0.03455064137 | X24: 0.03451764745 | Y24: -3.299392124e-05 | Z24: 3.299392124e-05 | AE24: 2.2 | AF24: 0.03838780909 | AG24: 0.03839126341 | AH24: 3.454323797e-06 | AI24: 3.454323797e-06
D25: 0.03612831552 | E25: 0.03612045658 | F25: 0.03764028295 | G25: 0.001519826363 | H25: 0.001519826363 | M25: 2.3 | N25: 0.04013179253 | O25: 0.0388300011 | P25: -0.001301791433 | Q25: 0.001301791433 | V25: 0.03612831552 | W25: 0.03612045658 | X25: 0.03608998709 | Y25: -3.046949694e-05 | Z25: 3.046949694e-05 | AE25: 2.3 | AF25: 0.04013179253 | AG25: 0.04013690865 | AH25: 5.116122384e-06 | AI25: 5.116122384e-06
D26: 0.03769911184 | E26: 0.03769018267 | F26: 0.03926563105 | G26: 0.001575448382 | H26: 0.001575448382 | M26: 2.4 | N26: 0.04187565373 | O26: 0.04064841892 | P26: -0.001227234805 | Q26: 0.001227234805 | V26: 0.03769911184 | W26: 0.03769018267 | X26: 0.037662191 | Y26: -2.799167482e-05 | Z26: 2.799167482e-05 | AE26: 2.4 | AF26: 0.04187565373 | AG26: 0.04188238864 | AH26: 6.734913302e-06 | AI26: 6.734913302e-06
D27: 0.03926990817 | E27: 0.03925981576 | F27: 0.040890047 | G27: 0.001630231237 | H27: 0.001630231237 | M27: 2.5 | N27: 0.04361938737 | O27: 0.0424656808 | P27: -0.001153706568 | Q27: 0.001153706568 | V27: 0.03926990817 | W27: 0.03925981576 | X27: 0.03923425567 | Y27: -2.556009327e-05 | Z27: 2.556009327e-05 | AE27: 2.5 | AF27: 0.04361938737 | AG27: 0.04362769849 | AH27: 8.311121991e-06 | AI27: 8.311121991e-06
D28: 0.0408407045 | E28: 0.04082935198 | F28: 0.04251353078 | G28: 0.0016841788 | H28: 0.0016841788 | M28: 2.6 | N28: 0.04536298813 | O28: 0.04428178672 | P28: -0.00108120141 | Q28: 0.00108120141 | V28: 0.0408407045 | W28: 0.04082935198 | X28: 0.04080617759 | Y28: -2.317439093e-05 | Z28: 2.317439093e-05 | AE28: 2.6 | AF28: 0.04536298813 | AG28: 0.0453728333 | AH28: 9.845173504e-06 | AI28: 9.845173504e-06
D29: 0.04241150082 | E29: 0.04239878746 | F29: 0.0441360824 | G29: 0.001737294944 | H29: 0.001737294944 | M29: 2.7 | N29: 0.04710645071 | O29: 0.04609673669 | P29: -0.00100971402 | Q29: 0.00100971402 | V29: 0.04241150082 | W29: 0.04239878746 | X29: 0.04237795325 | Y29: -2.083420666e-05 | Z29: 2.083420666e-05 | AE29: 2.7 | AF29: 0.04710645071 | AG29: 0.0471177882 | AH29: 1.133749249e-05 | AI29: 1.133749249e-05
D30: 0.04398229715 | E30: 0.04396811832 | F30: 0.04575770186 | G30: 0.001789583541 | H30: 0.001789583541 | M30: 2.8 | N30: 0.0488497698 | O30: 0.04791053071 | P30: -0.0009392390873 | Q30: 0.0009392390873 | V30: 0.04398229715 | W30: 0.04396811832 | X30: 0.04394957914 | Y30: -1.853917956e-05 | Z30: 1.853917956e-05 | AE30: 2.8 | AF30: 0.0488497698 | AG30: 0.0488625583 | AH30: 1.278850318e-05 | AI30: 1.278850318e-05
D31: 0.04555309348 | E31: 0.04553734069 | F31: 0.04737838916 | G31: 0.001841048465 | H31: 0.001841048465 | M31: 2.9 | N31: 0.05059294008 | O31: 0.04972316878 | P31: -0.0008697713008 | Q31: 0.0008697713008 | V31: 0.04555309348 | W31: 0.04553734069 | X31: 0.04552105174 | Y31: -1.628894903e-05 | Z31: 1.628894903e-05 | AE31: 2.9 | AF31: 0.05059294008 | AG31: 0.05060713871 | AH31: 1.419862935e-05 | AI31: 1.419862935e-05
D32: 0.0471238898 | E32: 0.04710645071 | F32: 0.04899814429 | G32: 0.001891693585 | H32: 0.001891693585 | M32: 3 | N32: 0.05233595624 | O32: 0.05153465089 | P32: -0.0008013053508 | Q32: 0.0008013053508 | V32: 0.0471238898 | W32: 0.04710645071 | X32: 0.04709236755 | Y32: -1.408315469e-05 | Z32: 1.408315469e-05 | AE32: 3 | AF32: 0.05233595624 | AG32: 0.05235152454 | AH32: 1.556829435e-05 | AI32: 1.556829435e-05
D33: 0.04869468613 | E33: 0.0486754445 | F33: 0.05061696727 | G33: 0.001941522775 | H33: 0.001941522775 | M33: 3.1 | N33: 0.05407881298 | O33: 0.05334497706 | P33: -0.0007338359277 | Q33: 0.0007338359277 | V33: 0.04869468613 | W33: 0.0486754445 | X33: 0.04866352306 | Y33: -1.192143646e-05 | Z33: 1.192143646e-05 | AE33: 3.1 | AF33: 0.05407881298 | AG33: 0.05409571091 | AH33: 1.689792104e-05 | AI33: 1.689792104e-05
D34: 0.05026548246 | E34: 0.05024431818 | F34: 0.05223485809 | G34: 0.001990539905 | H34: 0.001990539905 | M34: 3.2 | N34: 0.05582150499 | O34: 0.05515414727 | P34: -0.0006673577227 | Q34: 0.0006673577227 | V34: 0.05026548246 | W34: 0.05024431818 | X34: 0.05023451475 | Y34: -9.803434548e-06 | Z34: 9.803434548e-06 | AE34: 3.2 | AF34: 0.05582150499 | AG34: 0.05583969292 | AH34: 1.818793181e-05 | AI34: 1.818793181e-05
D35: 0.05183627878 | E35: 0.05181306789 | F35: 0.05385181674 | G35: 0.002038748847 | H35: 0.002038748847 | M35: 3.3 | N35: 0.05756402696 | O35: 0.05696216153 | P35: -0.000601865427 | Q35: 0.000601865427 | V35: 0.05183627878 | W35: 0.05181306789 | X35: 0.0518053391 | Y35: -7.728789458e-06 | Z35: 7.728789458e-06 | AE35: 3.3 | AF35: 0.05756402696 | AG35: 0.05758346571 | AH35: 1.943874854e-05 | AI35: 1.943874854e-05
D36: 0.05340707511 | E36: 0.05338168976 | F36: 0.05546784323 | G36: 0.002086153471 | H36: 0.002086153471 | M36: 3.4 | N36: 0.05930637358 | O36: 0.05876901984 | P36: -0.0005373537327 | Q36: 0.0005373537327 | V36: 0.05340707511 | W36: 0.05338168976 | X36: 0.05337599262 | Y36: -5.697141992e-06 | Z36: 5.697141992e-06 | AE36: 3.4 | AF36: 0.05930637358 | AG36: 0.05932702437 | AH36: 2.065079258e-05 | AI36: 2.065079258e-05
D37: 0.05497787144 | E37: 0.05495017991 | F37: 0.05708293756 | G37: 0.002132757648 | H37: 0.002132757648 | M37: 3.5 | N37: 0.06104853953 | O37: 0.0605747222 | P37: -0.0004738173324 | Q37: 0.0004738173324 | V37: 0.05497787144 | W37: 0.05495017991 | X37: 0.05494647178 | Y37: -3.708133275e-06 | Z37: 3.708133275e-06 | AE37: 3.5 | AF37: 0.06104853953 | AG37: 0.06107036402 | AH37: 2.182448477e-05 | AI37: 2.182448477e-05
D38: 0.05654866776 | E38: 0.05651853448 | F38: 0.05869709973 | G38: 0.002178565248 | H38: 0.002178565248 | M38: 3.6 | N38: 0.06279051953 | O38: 0.06237926861 | P38: -0.000411250919 | Q38: 0.000411250919 | V38: 0.05654866776 | W38: 0.05651853448 | X38: 0.05651677308 | Y38: -1.761404752e-06 | Z38: 1.761404752e-06 | AE38: 3.6 | AF38: 0.06279051953 | AG38: 0.06281347977 | AH38: 2.296024537e-05 | AI38: 2.296024537e-05
D39: 0.05811946409 | E39: 0.0580867496 | F39: 0.06031032974 | G39: 0.00222358014 | H39: 0.00222358014 | M39: 3.7 | N39: 0.06453230825 | O39: 0.06418265907 | P39: -0.0003496491861 | Q39: 0.0003496491861 | V39: 0.05811946409 | W39: 0.0580867496 | X39: 0.058086893 | Y39: 1.434017941e-07 | Z39: 1.434017941e-07 | AE39: 3.7 | AF39: 0.06453230825 | AG39: 0.06455636675 | AH39: 2.405849411e-05 | AI39: 2.405849411e-05
D40: 0.05969026042 | E40: 0.05965482139 | F40: 0.06192262758 | G40: 0.002267806194 | H40: 0.002267806194 | M40: 3.8 | N40: 0.0662739004 | O40: 0.06598489357 | P40: -0.0002890068281 | Q40: 0.0002890068281 | V40: 0.05969026042 | W40: 0.05965482139 | X40: 0.05965682803 | Y40: 2.006644238e-06 | Z40: 2.006644238e-06 | AE40: 3.8 | AF40: 0.0662739004 | AG40: 0.06629902005 | AH40: 2.511965012e-05 | AI40: 2.511965012e-05
D41: 0.06126105675 | E41: 0.06122274599 | F41: 0.06353399327 | G41: 0.002311247279 | H41: 0.002311247279 | M41: 3.9 | N41: 0.06801529067 | O41: 0.06778597213 | P41: -0.0002293185397 | Q41: 0.0002293185397 | V41: 0.06126105675 | W41: 0.06122274599 | X41: 0.06122657467 | Y41: 3.8286801e-06 | Z41: 3.8286801e-06 | AE41: 3.9 | AF41: 0.06801529067 | AG41: 0.0680414348 | AH41: 2.614413191e-05 | AI41: 2.614413191e-05
D42: 0.06283185307 | E42: 0.06279051953 | F42: 0.06514442679 | G42: 0.002353907263 | H42: 0.002353907263 | M42: 4 | N42: 0.06975647374 | O42: 0.06958589473 | P42: -0.0001705790163 | Q42: 0.0001705790163 | V42: 0.06283185307 | W42: 0.06279051953 | X42: 0.0627961294 | Y42: 5.609866538e-06 | Z42: 5.609866538e-06 | AE42: 4 | AF42: 0.06975647374 | AG42: 0.0697836061 | AH42: 2.713235741e-05 | AI42: 2.713235741e-05
D43: 0.0644026494 | E43: 0.06435813814 | F43: 0.06675392815 | G43: 0.002395790016 | H43: 0.002395790016 | M43: 4.1 | N43: 0.07149744433 | O43: 0.07138466138 | P43: -0.0001127829539 | Q43: 0.0001127829539 | V43: 0.0644026494 | W43: 0.06435813814 | X43: 0.0643654887 | Y43: 7.350560337e-06 | Z43: 7.350560337e-06 | AE43: 4.1 | AF43: 0.07149744433 | AG43: 0.07152552908 | AH43: 2.808474389e-05 | AI43: 2.808474389e-05
D44: 0.06597344573 | E44: 0.06592559795 | F44: 0.06836249736 | G44: 0.002436899405 | H44: 0.002436899405 | M44: 4.2 | N44: 0.07323819713 | O44: 0.07318227208 | P44: -5.59250494e-05 | Q44: 5.59250494e-05 | V44: 0.06597344573 | W44: 0.06592559795 | X44: 0.06593464907 | Y44: 9.051117898e-06 | Z44: 9.051117898e-06 | AE44: 4.2 | AF44: 0.07323819713 | AG44: 0.07326719884 | AH44: 2.900170801e-05 | AI44: 2.900170801e-05
D45: 0.06754424205 | E45: 0.0674928951 | F45: 0.0699701344 | G45: 0.002477239297 | H45: 0.002477239297 | M45: 4.3 | N45: 0.07497872683 | O45: 0.07497872683 | P45: 0 | Q45: 0 | V45: 0.06754424205 | W45: 0.0674928951 | X45: 0.06750360699 | Y45: 1.071189523e-05 | Z45: 1.071189523e-05 | AE45: 4.3 | AF45: 0.07497872683 | AG45: 0.07500861049 | AH45: 2.988366571e-05 | AI45: 2.988366571e-05
D46: 0.06911503838 | E46: 0.06906002571 | F46: 0.07157683927 | G46: 0.00251681356 | H46: 0.00251681356 | M46: 4.4 | N46: 0.07671902813 | O46: 0.07677402562 | P46: 5.49974962e-05 | Q46: 5.49974962e-05 | V46: 0.06911503838 | W46: 0.06906002571 | X46: 0.06907235896 | Y46: 1.233324795e-05 | Z46: 1.233324795e-05 | AE46: 4.4 | AF46: 0.07671902813 | AG46: 0.07674975916 | AH46: 3.073103231e-05 | AI46: 3.073103231e-05
D47: 0.07068583471 | E47: 0.07062698593 | F47: 0.07318261199 | G47: 0.00255562606 | H47: 0.00255562606 | M47: 4.5 | N47: 0.07845909573 | O47: 0.07856816847 | P47: 0.0001090727405 | Q47: 0.0001090727405 | V47: 0.07068583471 | W47: 0.07062698593 | X47: 0.07064090146 | Y47: 1.391553125e-05 | Z47: 1.391553125e-05 | AE47: 4.5 | AF47: 0.07845909573 | AG47: 0.07849063995 | AH47: 3.15442224e-05 | AI47: 3.15442224e-05
D48: 0.07225663103 | E48: 0.07219377188 | F48: 0.07478745255 | G48: 0.002593680664 | H48: 0.002593680664 | M48: 4.6 | N48: 0.08019892433 | O48: 0.08036115536 | P48: 0.0001622310334 | Q48: 0.0001622310334 | V48: 0.07225663103 | W48: 0.07219377188 | X48: 0.07220923098 | Y48: 1.545909991e-05 | Z48: 1.545909991e-05 | AE48: 4.6 | AF48: 0.08019892433 | AG48: 0.08023124798 | AH48: 3.232364986e-05 | AI48: 3.232364986e-05
D49: 0.07382742736 | E49: 0.0737603797 | F49: 0.07639136094 | G49: 0.002630981238 | H49: 0.002630981238 | M49: 4.7 | N49: 0.08193850863 | O49: 0.0821529863 | P49: 0.0002144776747 | Q49: 0.0002144776747 | V49: 0.07382742736 | W49: 0.0737603797 | X49: 0.07377734401 | Y49: 1.696430827e-05 | Z49: 1.696430827e-05 | AE49: 4.7 | AF49: 0.08193850863 | AG49: 0.08197157836 | AH49: 3.306972785e-05 | AI49: 3.306972785e-05
D50: 0.07539822369 | E50: 0.07532680553 | F50: 0.07799433717 | G50: 0.002667531646 | H50: 0.002667531646 | M50: 4.8 | N50: 0.08367784333 | O50: 0.0839436613 | P50: 0.0002658179635 | Q50: 0.0002658179635 | V50: 0.07539822369 | W50: 0.07532680553 | X50: 0.07534523704 | Y50: 1.843151025e-05 | Z50: 1.843151025e-05 | AE50: 4.8 | AF50: 0.08367784333 | AG50: 0.0837116262 | AH50: 3.378286879e-05 | AI50: 3.378286879e-05
D51: 0.07696902001 | E51: 0.07689304549 | F51: 0.07959638125 | G51: 0.002703335755 | H51: 0.002703335755 | M51: 4.9 | N51: 0.08541692314 | O51: 0.08573318034 | P51: 0.0003162571982 | Q51: 0.0003162571982 | V51: 0.07696902001 | W51: 0.07689304549 | X51: 0.07691290655 | Y51: 1.98610593e-05 | Z51: 1.98610593e-05 | AE51: 4.9 | AF51: 0.08541692314 | AG51: 0.08545138662 | AH51: 3.446348432e-05 | AI51: 3.446348432e-05
D52: 0.07853981634 | E52: 0.07845909573 | F52: 0.08119749316 | G52: 0.002738397429 | H52: 0.002738397429 | M52: 5 | N52: 0.08715574275 | O52: 0.08752154342 | P52: 0.0003658006762 | Q52: 0.0003658006762 | V52: 0.07853981634 | W52: 0.07845909573 | X52: 0.07848034904 | Y52: 2.125330843e-05 | Z52: 2.125330843e-05 | AE52: 5 | AF52: 0.08715574275 | AG52: 0.08719085473 | AH52: 3.511198533e-05 | AI52: 3.511198533e-05
D53: 0.08011061267 | E53: 0.08002495237 | F53: 0.08279767291 | G53: 0.002772720531 | H53: 0.002772720531 | M53: 5.1 | N53: 0.08889429687 | O53: 0.08930875056 | P53: 0.0004144536943 | Q53: 0.0004144536943 | V53: 0.08011061267 | W53: 0.08002495237 | X53: 0.08004756098 | Y53: 2.260861017e-05 | Z53: 2.260861017e-05 | AE53: 5.1 | AF53: 0.08889429687 | AG53: 0.08893002565 | AH53: 3.572878189e-05 | AI53: 3.572878189e-05
D54: 0.08168140899 | E54: 0.08159061157 | F54: 0.08439692049 | G54: 0.002806308925 | H54: 0.002806308925 | M54: 5.2 | N54: 0.0906325802 | O54: 0.09109480175 | P54: 0.0004622215485 | Q54: 0.0004622215485 | V54: 0.08168140899 | W54: 0.08159061157 | X54: 0.08161453888 | Y54: 2.392731657e-05 | Z54: 2.392731657e-05 | AE54: 5.2 | AF54: 0.0906325802 | AG54: 0.09066889448 | AH54: 3.631428328e-05 | AI54: 3.631428328e-05
D55: 0.08325220532 | E55: 0.08315606944 | F55: 0.08599523592 | G55: 0.002839166475 | H55: 0.002839166475 | M55: 5.3 | N55: 0.09237058745 | O55: 0.09287969698 | P55: 0.0005091095338 | Q55: 0.0005091095338 | V55: 0.08325220532 | W55: 0.08315606944 | X55: 0.08318127922 | Y55: 2.52097792e-05 | Z55: 2.52097792e-05 | AE55: 5.3 | AF55: 0.09237058745 | AG55: 0.09240745634 | AH55: 3.686889796e-05 | AI55: 3.686889796e-05
D56: 0.08482300165 | E56: 0.08472132214 | F56: 0.08759261918 | G56: 0.002871297043 | H56: 0.002871297043 | M56: 5.4 | N56: 0.09410831332 | O56: 0.09466343626 | P56: 0.0005551229446 | Q56: 0.0005551229446 | V56: 0.08482300165 | W56: 0.08472132214 | X56: 0.08474777849 | Y56: 2.645634913e-05 | Z56: 2.645634913e-05 | AE56: 5.4 | AF56: 0.09410831332 | AG56: 0.09414570635 | AH56: 3.739303353e-05 | AI56: 3.739303353e-05
D57: 0.08639379797 | E57: 0.0862863658 | F57: 0.08918907029 | G57: 0.00290270449 | H57: 0.00290270449 | M57: 5.5 | N57: 0.09584575252 | O57: 0.09644601959 | P57: 0.0006002670742 | Q57: 0.0006002670742 | V57: 0.08639379797 | W57: 0.0862863658 | X57: 0.08631403317 | Y57: 2.766737693e-05 | Z57: 2.766737693e-05 | AE57: 5.5 | AF57: 0.09584575252 | AG57: 0.09588363962 | AH57: 3.788709674e-05 | AI57: 3.788709674e-05
D58: 0.0879645943 | E58: 0.08785119655 | F58: 0.09078458923 | G58: 0.00293339268 | H58: 0.00293339268 | M58: 5.6 | N58: 0.09758289976 | O58: 0.09822744697 | P58: 0.0006445472152 | Q58: 0.0006445472152 | V58: 0.0879645943 | W58: 0.08785119655 | X58: 0.08788003976 | Y58: 2.884321264e-05 | Z58: 2.884321264e-05 | AE58: 5.6 | AF58: 0.09758289976 | AG58: 0.09762125125 | AH58: 3.835149348e-05 | AI58: 3.835149348e-05
D59: 0.08953539063 | E59: 0.08941581054 | F59: 0.09237917601 | G59: 0.002963365472 | H59: 0.002963365472 | M59: 5.7 | N59: 0.09931974974 | O59: 0.1000077184 | P59: 0.0006879686593 | Q59: 0.0006879686593 | V59: 0.08953539063 | W59: 0.08941581054 | X59: 0.08944579475 | Y59: 2.998420579e-05 | Z59: 2.998420579e-05 | AE59: 5.7 | AF59: 0.09931974974 | AG59: 0.09935853637 | AH59: 3.878662873e-05 | AI59: 3.878662873e-05
D60: 0.09110618695 | E60: 0.0909802039 | F60: 0.09397283063 | G60: 0.002992626728 | H60: 0.002992626728 | M60: 5.8 | N60: 0.1010562972 | O60: 0.1017868339 | P60: 0.0007305366971 | Q60: 0.0007305366971 | V60: 0.09110618695 | W60: 0.0909802039 | X60: 0.09101129461 | Y60: 3.109070537e-05 | Z60: 3.109070537e-05 | AE60: 5.8 | AF60: 0.1010562972 | AG60: 0.1010954901 | AH60: 3.919290657e-05 | AI60: 3.919290657e-05
D61: 0.09267698328 | E61: 0.09254437278 | F61: 0.09556555309 | G61: 0.003021180307 | H61: 0.003021180307 | M61: 5.9 | N61: 0.1027925368 | O61: 0.1035647934 | P61: 0.0007722566186 | Q61: 0.0007722566186 | V61: 0.09267698328 | W61: 0.09254437278 | X61: 0.09257653584 | Y61: 3.216305983e-05 | Z61: 3.216305983e-05 | AE61: 5.9 | AF61: 0.1027925368 | AG61: 0.1028321075 | AH61: 3.957073018e-05 | AI61: 3.957073018e-05
D62: 0.09424777961 | E62: 0.09410831332 | F62: 0.09715734339 | G62: 0.003049030068 | H62: 0.003049030068 | M62: 6 | N62: 0.1045284633 | O62: 0.105341597 | P62: 0.0008131337125 | Q62: 0.0008131337125 | V62: 0.09424777961 | W62: 0.09410831332 | X62: 0.09414151494 | Y62: 3.320161704e-05 | Z62: 3.320161704e-05 | AE62: 6 | AF62: 0.1045284633 | AG62: 0.1045683838 | AH62: 3.992050176e-05 | AI62: 3.992050176e-05
D63: 0.09581857593 | E63: 0.09567202165 | F63: 0.09874820152 | G63: 0.003076179871 | H63: 0.003076179871 | M63: 6.1 | N63: 0.1062640713 | O63: 0.1071172446 | P63: 0.0008531732669 | Q63: 0.0008531732669 | V63: 0.09581857593 | W63: 0.09567202165 | X63: 0.09570622838 | Y63: 3.420672435e-05 | Z63: 3.420672435e-05 | AE63: 6.1 | AF63: 0.1062640713 | AG63: 0.106304314 | AH63: 4.02426226e-05 | AI63: 4.02426226e-05
D64: 0.09738937226 | E64: 0.09723549392 | F64: 0.1003381275 | G64: 0.003102633574 | H64: 0.003102633574 | M64: 6.2 | N64: 0.1079993557 | O64: 0.1088917363 | P64: 0.0008923805686 | Q64: 0.0008923805686 | V64: 0.09738937226 | W64: 0.09723549392 | X64: 0.09727067265 | Y64: 3.51787285e-05 | Z64: 3.51787285e-05 | AE64: 6.2 | AF64: 0.1079993557 | AG64: 0.1080398932 | AH64: 4.0537493e-05 | AI64: 4.0537493e-05
D65: 0.09896016859 | E65: 0.09879872627 | F65: 0.1019271213 | G65: 0.003128395035 | H65: 0.003128395035 | M65: 6.3 | N65: 0.1097343111 | O65: 0.110665072 | P65: 0.0009307609037 | Q65: 0.0009307609037 | V65: 0.09896016859 | W65: 0.09879872627 | X65: 0.09883484425 | Y65: 3.611797566e-05 | Z65: 3.611797566e-05 | AE65: 6.3 | AF65: 0.1097343111 | AG65: 0.1097751166 | AH65: 4.080551227e-05 | AI65: 4.080551227e-05
D66: 0.1005309649 | E66: =SIN(x) -> 0.1003617149 | F66: =y0+dy*(x-x0)/dx+d2y*(x-x0)*(x-x0-dx)/2/dx^2 -> 0.103515183 | G66: 0.00315346811 | H66: 0.00315346811 | M66: 6.4 | N66: =SIN(xx*PI()/180) -> 0.1114689322 | O66: =yy0+dyy*(xx-xx0)/dxx+d2yy*(xx-xx0)*(xx-xx0-dxx)/2/dxx^2 -> 0.1124372518 | P66: 0.0009683195572 | Q66: 0.0009683195572 | V66: 0.1005309649 | W66: =SIN(xxx) -> 0.1003617149 | X66: =yyy0+dyyy0*(xxx-xxx0)/dxxx+d2yyy0*(xxx-xxx0)*(xxx-xxx0-dxxx)/2/dxxx^2+d3yyy0*(xxx-xxx0)*(xxx-xxx0-dxxx)*(xxx-xxx0-2*dxxx)/6/dxxx^3 -> 0.1003987397 | Y66: 3.702481142e-05 | Z66: 3.702481142e-05 | AE66: 6.4 | AF66: =SIN(xxxx*PI()/180) -> 0.1114689322 | AG66: =yyyy0+dyyyy0*(xxxx-xxxx0)/dxxxx+d2yyyy0*(xxxx-xxxx0)*(xxxx-xxxx0-dxxxx)/2/dxxxx^2+d3yyyy0*(xxxx-xxxx0)*(xxxx-xxxx0-dxxxx)*(xxxx-xxxx0-2*dxxxx)/6/dxxxx^3 -> 0.1115099793 | AH66: 4.104707872e-05 | AI66: 4.104707872e-05
D67: =D66+dx0 -> 0.1021017612 | E67: 0.1019244558 | F67: 0.1051023125 | G67: =F67-E67 -> 0.003177856657 | H67: =ABS(G67) -> 0.003177856657 | M67: =M66+dxx0 -> 6.5 | N67: 0.1132032138 | O67: 0.1142082756 | P67: =O67-N67 -> 0.001005061813 | Q67: =ABS(P67) -> 0.001005061813 | V67: =V66+dx0 -> 0.1021017612 | W67: 0.1019244558 | X67: 0.1019623554 | Y67: =X67-W67 -> 3.789958076e-05 | Z67: =ABS(Y67) -> 3.789958076e-05 | AE67: =AE66+dxxxx0 -> 6.5 | AF67: 0.1132032138 | AG67: 0.1132444764 | AH67: =AG67-AF67 -> 4.126258964e-05 | AI67: =ABS(AH67) -> 4.126258964e-05
D68: 0.1036725576 | E68: 0.1034869453 | F68: 0.1066885098 | G68: 0.00320156453 | H68: 0.00320156453 | M68: 6.6 | N68: 0.1149371505 | O68: 0.1159781434 | P68: 0.001040992954 | Q68: 0.001040992954 | V68: 0.1036725576 | W68: 0.1034869453 | X68: 0.1035256879 | Y68: 3.874262803e-05 | Z68: 3.874262803e-05 | AE68: 6.6 | AF68: 0.1149371505 | AG68: 0.1149786029 | AH68: 4.145244131e-05 | AI68: 4.145244131e-05
D69: 0.1052433539 | E69: 0.1050491794 | F69: 0.1082737749 | G69: 0.003224595586 | H69: 0.003224595586 | M69: 6.7 | N69: 0.1166707371 | O69: 0.1177468554 | P69: 0.001076118262 | Q69: 0.001076118262 | V69: 0.1052433539 | W69: 0.1050491794 | X69: 0.1050887337 | Y69: 3.9554297e-05 | Z69: 3.9554297e-05 | AE69: 6.7 | AF69: 0.1166707371 | AG69: 0.1167123541 | AH69: 4.161702892e-05 | AI69: 4.161702892e-05
D70: 0.1068141502 | E70: 0.1066111543 | F70: 0.109858108 | G70: 0.00324695368 | H70: 0.00324695368 | M70: 6.8 | N70: 0.1184039683 | O70: 0.1195144113 | P70: 0.001110443018 | Q70: 0.001110443018 | V70: 0.1068141502 | W70: 0.1066111543 | X70: 0.1066514892 | Y70: 4.033493076e-05 | Z70: 4.033493076e-05 | AE70: 6.8 | AF70: 0.1184039683 | AG70: 0.1184457251 | AH70: 4.175674663e-05 | AI70: 4.175674663e-05
D71: 0.1083849465 | E71: 0.1081728661 | F71: 0.1114415088 | G71: 0.003268642664 | H71: 0.003268642664 | M71: 6.9 | N71: 0.1201368388 | O71: 0.1212808113 | P71: 0.001143972502 | Q71: 0.001143972502 | V71: 0.1083849465 | W71: 0.1081728661 | X71: 0.108213951 | Y71: 4.108487181e-05 | Z71: 4.108487181e-05 | AE71: 6.9 | AF71: 0.1201368388 | AG71: 0.1201787108 | AH71: 4.187198748e-05 | AI71: 4.187198748e-05
D72: 0.1099557429 | E72: 0.1097343111 | F72: 0.1130239775 | G72: 0.003289666392 | H72: 0.003289666392 | M72: 7 | N72: 0.1218693434 | O72: 0.1230460554 | P72: 0.001176711992 | Q72: 0.001176711992 | V72: 0.1099557429 | W72: 0.1097343111 | X72: 0.1097761156 | Y72: 4.180446197e-05 | Z72: 4.180446197e-05 | AE72: 7 | AF72: 0.1218693434 | AG72: 0.1219113065 | AH72: 4.196314345e-05 | AI72: 4.196314345e-05
D73: 0.1115265392 | E73: 0.1112954853 | F73: 0.114605514 | G73: 0.003310028718 | H73: 0.003310028718 | M73: 7.1 | N73: 0.1236014767 | O73: 0.1248101435 | P73: 0.001208666765 | Q73: 0.001208666765 | V73: 0.1115265392 | W73: 0.1112954853 | X73: 0.1113379793 | Y73: 4.249404241e-05 | Z73: 4.249404241e-05 | AE73: 7.1 | AF73: 0.1236014767 | AG73: 0.1236435073 | AH73: 4.203060537e-05 | AI73: 4.203060537e-05
D74: 0.1130973355 | E74: 0.1128563849 | F74: 0.1161861184 | G74: 0.003329733493 | H74: 0.003329733493 | M74: 7.2 | N74: 0.1253332336 | O74: 0.1265730757 | P74: 0.001239842099 | Q74: 0.001239842099 | V74: 0.1130973355 | W74: 0.1128563849 | X74: 0.1128995388 | Y74: 4.315395363e-05 | Z74: 4.315395363e-05 | AE74: 7.2 | AF74: 0.1253332336 | AG74: 0.1253753083 | AH74: 4.207476298e-05 | AI74: 4.207476298e-05
D75: 0.1146681319 | E75: 0.114417006 | F75: 0.1177657906 | G75: 0.003348784569 | H75: 0.003348784569 | M75: 7.3 | N75: 0.1270646086 | O75: 0.1283348519 | P75: 0.001270243268 | Q75: 0.001270243268 | V75: 0.1146681319 | W75: 0.114417006 | X75: 0.1144607905 | Y75: 4.378453545e-05 | Z75: 4.378453545e-05 | AE75: 7.3 | AF75: 0.1270646086 | AG75: 0.1271067046 | AH75: 4.209600483e-05 | AI75: 4.209600483e-05
D76: 0.1162389282 | E76: 0.1159773448 | F76: 0.1193445306 | G76: 0.003367185796 | H76: 0.003367185796 | M76: 7.4 | N76: 0.1287955966 | O76: 0.1300954721 | P76: 0.001299875547 | Q76: 0.001299875547 | V76: 0.1162389282 | W76: 0.1159773448 | X76: 0.1160217309 | Y76: 4.438612702e-05 | Z76: 4.438612702e-05 | AE76: 7.4 | AF76: 0.1287955966 | AG76: 0.1288376913 | AH76: 4.209471833e-05 | AI76: 4.209471833e-05
D77: 0.1178097245 | E77: 0.1175373975 | F77: 0.1209223385 | G77: 0.003384941024 | H77: 0.003384941024 | M77: 7.5 | N77: 0.1305261922 | O77: 0.1318549364 | P77: 0.001328744208 | Q77: 0.001328744208 | V77: 0.1178097245 | W77: 0.1175373975 | X77: 0.1175823565 | Y77: 4.495906677e-05 | Z77: 4.495906677e-05 | AE77: 7.5 | AF77: 0.1305261922 | AG77: 0.1305682635 | AH77: 4.207128971e-05 | AI77: 4.207128971e-05
D78: 0.1193805208 | E78: 0.1190971601 | F78: 0.1224992142 | G78: 0.003402054102 | H78: 0.003402054102 | M78: 7.6 | N78: 0.1322563903 | O78: 0.1336132448 | P78: 0.001356854523 | Q78: 0.001356854523 | V78: 0.1193805208 | W78: 0.1190971601 | X78: 0.1191426638 | Y78: 4.550369243e-05 | Z78: 4.550369243e-05 | AE78: 7.6 | AF78: 0.1322563903 | AG78: 0.1322984164 | AH78: 4.202610401e-05 | AI78: 4.202610401e-05
D79: 0.1209513172 | E79: 0.1206566289 | F79: 0.1240751578 | G79: 0.00341852888 | H79: 0.00341852888 | M79: 7.7 | N79: 0.1339861854 | O79: 0.1353703972 | P79: 0.001384211762 | Q79: 0.001384211762 | V79: 0.1209513172 | W79: 0.1206566289 | X79: 0.1207026492 | Y79: 4.602034103e-05 | Z79: 4.602034103e-05 | AE79: 7.7 | AF79: 0.1339861854 | AG79: 0.134028145 | AH79: 4.195954504e-05 | AI79: 4.195954504e-05
D80: 0.1225221135 | E80: 0.1222157999 | F80: 0.1256501691 | G80: 0.003434369205 | H80: 0.003434369205 | M80: 7.8 | N80: 0.1357155724 | O80: 0.1371263936 | P80: 0.001410821195 | Q80: 0.001410821195 | V80: 0.1225221135 | W80: 0.1222157999 | X80: 0.1222623093 | Y80: 4.650934885e-05 | Z80: 4.650934885e-05 | AE80: 7.8 | AF80: 0.1357155724 | AG80: 0.1357574444 | AH80: 4.187199539e-05 | AI80: 4.187199539e-05
D81: 0.1240929098 | E81: 0.1237746695 | F81: 0.1272242484 | G81: 0.003449578923 | H81: 0.003449578923 | M81: 7.9 | N81: 0.137444546 | O81: 0.1388812341 | P81: 0.00143668809 | Q81: 0.00143668809 | V81: 0.1240929098 | W81: 0.1237746695 | X81: 0.1238216405 | Y81: 4.697105147e-05 | Z81: 4.697105147e-05 | AE81: 7.9 | AF81: 0.137444546 | AG81: 0.1374863099 | AH81: 4.176383642e-05 | AI81: 4.176383642e-05
D82: 0.1256637061 | E82: 0.1253332336 | F82: 0.1287973954 | G82: 0.003464161882 | H82: 0.003464161882 | M82: 8 | N82: 0.139173101 | O82: 0.1406349187 | P82: 0.001461817714 | Q82: 0.001461817714 | V82: 0.1256637061 | W82: 0.1253332336 | X82: 0.1253806393 | Y82: 4.740578368e-05 | Z82: 4.740578368e-05 | AE82: 8 | AF82: 0.139173101 | AG82: 0.1392147364 | AH82: 4.163544822e-05 | AI82: 4.163544822e-05
D83: 0.1272345025 | E83: 0.1268914884 | F83: 0.1303696104 | G83: 0.003478121927 | H83: 0.003478121927 | M83: 8.1 | N83: 0.1409012319 | O83: 0.1423874473 | P83: 0.001486215331 | Q83: 0.001486215331 | V83: 0.1272345025 | W83: 0.1268914884 | X83: 0.1269393023 | Y83: 4.781387956e-05 | Z83: 4.781387956e-05 | AE83: 8.1 | AF83: 0.1409012319 | AG83: 0.1409427191 | AH83: 4.148720961e-05 | AI83: 4.148720961e-05
D84: 0.1288052988 | E84: 0.1284494302 | F84: 0.1319408931 | G84: 0.003491462903 | H84: 0.003491462903 | M84: 8.2 | N84: 0.1426289337 | O84: 0.1441388199 | P84: 0.001509886207 | Q84: 0.001509886207 | V84: 0.1288052988 | W84: 0.1284494302 | X84: 0.1284976259 | Y84: 4.81956724e-05 | Z84: 4.81956724e-05 | AE84: 8.2 | AF84: 0.1426289337 | AG84: 0.1426702532 | AH84: 4.13194981e-05 | AI84: 4.13194981e-05
D85: 0.1303760951 | E85: 0.130007055 | F85: 0.1335112437 | G85: 0.003504188653 | H85: 0.003504188653 | M85: 8.3 | N85: 0.144356201 | O85: 0.1458890366 | P85: 0.001532835603 | Q85: 0.001532835603 | V85: 0.1303760951 | W85: 0.130007055 | X85: 0.1300556065 | Y85: 4.855149472e-05 | Z85: 4.855149472e-05 | AE85: 8.3 | AF85: 0.144356201 | AG85: 0.1443973337 | AH85: 4.113268992e-05 | AI85: 4.113268992e-05
D86: 0.1319468915 | E86: 0.1315643591 | F86: 0.1350806621 | G86: 0.003516303022 | H86: 0.003516303022 | M86: 8.4 | N86: 0.1460830286 | O86: 0.1476380973 | P86: 0.001555068783 | Q86: 0.001555068783 | V86: 0.1319468915 | W86: 0.1315643591 | X86: 0.1316132408 | Y86: 4.888167828e-05 | Z86: 4.888167828e-05 | AE86: 8.4 | AF86: 0.1460830286 | AG86: 0.1461239557 | AH86: 4.092715996e-05 | AI86: 4.092715996e-05
D87: 0.1335176878 | E87: 0.1331213385 | F87: 0.1366491484 | G87: 0.003527809851 | H87: 0.003527809851 | M87: 8.5 | N87: 0.1478094111 | O87: 0.1493860021 | P87: 0.001576591005 | Q87: 0.001576591005 | V87: 0.1335176878 | W87: 0.1331213385 | X87: 0.1331705251 | Y87: 4.918655402e-05 | Z87: 4.918655402e-05 | AE87: 8.5 | AF87: 0.1478094111 | AG87: 0.1478501144 | AH87: 4.070328177e-05 | AI87: 4.070328177e-05
D88: 0.1350884841 | E88: 0.1346779895 | F88: 0.1382167025 | G88: 0.003538712983 | H88: 0.003538712983 | M88: 8.6 | N88: 0.1495353434 | O88: 0.151132751 | P88: 0.001597407529 | Q88: 0.001597407529 | V88: 0.1350884841 | W88: 0.1346779895 | X88: 0.1347274559 | Y88: 4.946645209e-05 | Z88: 4.946645209e-05 | AE88: 8.6 | AF88: 0.1495353434 | AG88: 0.1495758049 | AH88: 4.046142755e-05 | AI88: 4.046142755e-05
D89: 0.1366592804 | E89: 0.1362343082 | F89: 0.1397833244 | G89: 0.003549016258 | H89: 0.003549016258 | M89: 8.7 | N89: 0.1512608202 | O89: 0.1528783439 | P89: 0.001617523612 | Q89: 0.001617523612 | V89: 0.1366592804 | W89: 0.1362343082 | X89: 0.1362840299 | Y89: 4.972170185e-05 | Z89: 4.972170185e-05 | AE89: 8.7 | AF89: 0.1512608202 | AG89: 0.1513010222 | AH89: 4.020196813e-05 | AI89: 4.020196813e-05
D90: 0.1382300768 | E90: 0.1377902907 | F90: 0.1413490142 | G90: 0.003558723516 | H90: 0.003558723516 | M90: 8.8 | N90: 0.1529858363 | O90: 0.1546227808 | P90: 0.001636944511 | Q90: 0.001636944511 | V90: 0.1382300768 | W90: 0.1377902907 | X90: 0.1378402433 | Y90: 4.995263179e-05 | Z90: 4.995263179e-05 | AE90: 8.8 | AF90: 0.1529858363 | AG90: 0.1530257616 | AH90: 3.992527295e-05 | AI90: 3.992527295e-05
D91: 0.1398008731 | E91: 0.1393459332 | F91: 0.1429137718 | G91: 0.003567838597 | H91: 0.003567838597 | M91: 8.9 | N91: 0.1547103863 | O91: 0.1563660618 | P91: 0.001655675479 | Q91: 0.001655675479 | V91: 0.1398008731 | W91: 0.1393459332 | X91: 0.1393960928 | Y91: 5.015956963e-05 | Z91: 5.015956963e-05 | AE91: 8.9 | AF91: 0.1547103863 | AG91: 0.154750018 | AH91: 3.963171005e-05 | AI91: 3.963171005e-05
D92: 0.1413716694 | E92: 0.1409012319 | F92: 0.1444775973 | G92: 0.003576365338 | H92: 0.003576365338 | M92: 9 | N92: 0.156434465 | O92: 0.1581081868 | P92: 0.001673721771 | Q92: 0.001673721771 | V92: 0.1413716694 | W92: 0.1409012319 | X92: 0.1409515748 | Y92: 5.03428422e-05 | Z92: 5.03428422e-05 | AE92: 9 | AF92: 0.156434465 | AG92: 0.1564737867 | AH92: 3.932164603e-05 | AI92: 3.932164603e-05
D93: 0.1429424657 | E93: 0.142456183 | F93: 0.1460404906 | G93: 0.003584307578 | H93: 0.003584307578 | M93: 9.1 | N93: 0.1581580673 | O93: 0.1598491559 | P93: 0.001691088637 | Q93: 0.001691088637 | V93: 0.1429424657 | W93: 0.142456183 | X93: 0.1425066858 | Y93: 5.050277552e-05 | Z93: 5.050277552e-05 | AE93: 9.1 | AF93: 0.1581580673 | AG93: 0.1581970627 | AH93: 3.899544609e-05 | AI93: 3.899544609e-05
D94: 0.1445132621 | E94: 0.1440107826 | F94: 0.1476024517 | G94: 0.003591669153 | H94: 0.003591669153 | M94: 9.2 | N94: 0.1598811877 | O94: 0.161588969 | P94: 0.00170778133 | Q94: 0.00170778133 | V94: 0.1445132621 | W94: 0.1440107826 | X94: 0.1440614222 | Y94: 5.063969473e-05 | Z94: 5.063969473e-05 | AE94: 9.2 | AF94: 0.1598811877 | AG94: 0.1599198412 | AH94: 3.865347394e-05 | AI94: 3.865347394e-05
D95: 0.1460840584 | E95: 0.1455650268 | F95: 0.1491634807 | G95: 0.003598453899 | H95: 0.003598453899 | M95: 9.3 | N95: 0.1616038211 | O95: 0.1633276262 | P95: 0.001723805096 | Q95: 0.001723805096 | V95: 0.1460840584 | W95: 0.1455650268 | X95: 0.1456157807 | Y95: 5.075392411e-05 | Z95: 5.075392411e-05 | AE95: 9.3 | AF95: 0.1616038211 | AG95: 0.1616421172 | AH95: 3.829609185e-05 | AI95: 3.829609185e-05
D96: 0.1476548547 | E96: 0.1471189118 | F96: 0.1507235775 | G96: 0.003604665651 | H96: 0.003604665651 | M96: 9.4 | N96: 0.1633259622 | O96: 0.1650651274 | P96: 0.001739165185 | Q96: 0.001739165185 | V96: 0.1476548547 | W96: 0.1471189118 | X96: 0.1471697576 | Y96: 5.084578707e-05 | Z96: 5.084578707e-05 | AE96: 9.4 | AF96: 0.1633259622 | AG96: 0.1633638859 | AH96: 3.792366061e-05 | AI96: 3.792366061e-05
D97: 0.149225651 | E97: 0.1486724339 | F97: 0.1522827421 | G97: 0.003610308243 | H97: 0.003610308243 | M97: 9.5 | N97: 0.1650476059 | O97: 0.1668014727 | P97: 0.001753866841 | Q97: 0.001753866841 | V97: 0.149225651 | W97: 0.1486724339 | X97: 0.1487233495 | Y97: 5.091560611e-05 | Z97: 5.091560611e-05 | AE97: 9.5 | AF97: 0.1650476059 | AG97: 0.1650851424 | AH97: 3.753653948e-05 | AI97: 3.753653948e-05
D98: 0.1507964474 | E98: 0.1502255891 | F98: 0.1538409746 | G98: 0.003615385508 | H98: 0.003615385508 | M98: 9.6 | N98: 0.1667687467 | O98: 0.168536662 | P98: 0.00176791531 | Q98: 0.00176791531 | V98: 0.1507964474 | W98: 0.1502255891 | X98: 0.1502765528 | Y98: 5.096370287e-05 | Z98: 5.096370287e-05 | AE98: 9.6 | AF98: 0.1667687467 | AG98: 0.1668058818 | AH98: 3.713508623e-05 | AI98: 3.713508623e-05
D99: 0.1523672437 | E99: 0.1517783737 | F99: 0.155398275 | G99: 0.003619901279 | H99: 0.003619901279 | M99: 9.7 | N99: 0.1684893796 | O99: 0.1702706954 | P99: 0.001781315834 | Q99: 0.001781315834 | V99: 0.1523672437 | W99: 0.1517783737 | X99: 0.1518293641 | Y99: 5.099039804e-05 | Z99: 5.099039804e-05 | AE99: 9.7 | AF99: 0.1684893796 | AG99: 0.1685260992 | AH99: 3.671965709e-05 | AI99: 3.671965709e-05
D100: 0.15393804 | E100: 0.1533307837 | F100: 0.1569546431 | G100: 0.003623859386 | H100: 0.003623859386 | M100: 9.8 | N100: 0.1702094992 | O100: 0.1720035728 | P100: 0.001794073654 | Q100: 0.001794073654 | V100: 0.15393804 | W100: 0.1533307837 | X100: 0.1533817797 | Y100: 5.099601145e-05 | Z100: 5.099601145e-05 | AE100: 9.8 | AF100: 0.1702094992 | AG100: 0.1702457898 | AH100: 3.629060675e-05 | AI100: 3.629060675e-05
D101: 0.1555088364 | E101: 0.1548828155 | F101: 0.1585100791 | G101: 0.00362726366 | H101: 0.00362726366 | M101: 9.9 | N101: 0.1719291003 | O101: 0.1737352943 | P101: 0.00180619401 | Q101: 0.00180619401 | V101: 0.1555088364 | W101: 0.1548828155 | X101: 0.1549337963 | Y101: 5.098086196e-05 | Z101: 5.098086196e-05 | AE101: 9.9 | AF101: 0.1719291003 | AG101: 0.1719649486 | AH101: 3.584828833e-05 | AI101: 3.584828833e-05
D102: 0.1570796327 | E102: 0.156434465 | F102: 0.160064583 | G102: 0.003630117931 | H102: 0.003630117931 | M102: 10 | N102: 0.1736481777 | O102: 0.1754658598 | P102: 0.001817682141 | Q102: 0.001817682141 | V102: 0.1570796327 | W102: 0.156434465 | X102: 0.1564854103 | Y102: 5.094526751e-05 | Z102: 5.094526751e-05 | AE102: 10 | AF102: 0.1736481777 | AG102: 0.1736835707 | AH102: 3.539305336e-05 | AI102: 3.539305336e-05
D103: 0.158650429 | E103: 0.1579857286 | F103: 0.1616181547 | G103: 0.003632426027 | H103: 0.003632426027 | M103: 10.1 | N103: 0.1753667261 | O103: 0.1771952694 | P103: 0.001828543283 | Q103: 0.001828543283 | V103: 0.158650429 | W103: 0.1579857286 | X103: 0.1580366182 | Y103: 5.088954511e-05 | Z103: 5.088954511e-05 | AE103: 10.1 | AF103: 0.1753667261 | AG103: 0.1754016513 | AH103: 3.492525179e-05 | AI103: 3.492525179e-05
D104: 0.1602212253 | E104: 0.1595366024 | F104: 0.1631707942 | G104: 0.003634191776 | H104: 0.003634191776 | M104: 10.2 | N104: 0.1770847403 | O104: 0.178923523 | P104: 0.001838782671 | Q104: 0.001838782671 | V104: 0.1602212253 | W104: 0.1595366024 | X104: 0.1595874164 | Y104: 5.081401081e-05 | Z104: 5.081401081e-05 | AE104: 10.2 | AF104: 0.1770847403 | AG104: 0.1771191856 | AH104: 3.444523196e-05 | AI104: 3.444523196e-05
D105: 0.1617920217 | E105: 0.1610870825 | F105: 0.1647225015 | G105: 0.003635419004 | H105: 0.003635419004 | M105: 10.3 | N105: 0.1788022151 | O105: 0.1806506207 | P105: 0.001848405539 | Q105: 0.001848405539 | V105: 0.1617920217 | W105: 0.1610870825 | X105: 0.1611378015 | Y105: 5.071897968e-05 | Z105: 5.071897968e-05 | AE105: 10.3 | AF105: 0.1788022151 | AG105: 0.1788361685 | AH105: 3.395334057e-05 | AI105: 3.395334057e-05
D106: 0.163362818 | E106: 0.1626371652 | F106: 0.1662732767 | G106: 0.003636111537 | H106: 0.003636111537 | M106: 10.4 | N106: 0.1805191453 | O106: 0.1823765624 | P106: 0.001857417118 | Q106: 0.001857417118 | V106: 0.163362818 | W106: 0.1626371652 | X106: 0.16268777 | Y106: 5.060476585e-05 | Z106: 5.060476585e-05 | AE106: 10.4 | AF106: 0.1805191453 | AG106: 0.1805525952 | AH106: 3.344992269e-05 | AI106: 3.344992269e-05
D107: 0.1649336143 | E107: 0.1641868466 | F107: 0.1678231198 | G107: 0.0036362732 | H107: 0.0036362732 | M107: 10.5 | N107: 0.1822355255 | O107: 0.1841013481 | P107: 0.001865822638 | Q107: 0.001865822638 | V107: 0.1649336143 | W107: 0.1641868466 | X107: 0.1642373183 | Y107: 5.047168245e-05 | Z107: 5.047168245e-05 | AE107: 10.5 | AF107: 0.1822355255 | AG107: 0.1822684608 | AH107: 3.293532172e-05 | AI107: 3.293532172e-05
D108: 0.1665044106 | E108: 0.1657361228 | F108: 0.1693720306 | G108: 0.003635907816 | H108: 0.003635907816 | M108: 10.6 | N108: 0.1839513506 | O108: 0.1858249779 | P108: 0.001873627327 | Q108: 0.001873627327 | V108: 0.1665044106 | W108: 0.1657361228 | X108: 0.1657864429 | Y108: 5.032004163e-05 | Z108: 5.032004163e-05 | AE108: 10.6 | AF108: 0.1839513506 | AG108: 0.1839837605 | AH108: 3.240987939e-05 | AI108: 3.240987939e-05
D109: 0.168075207 | E109: 0.1672849901 | F109: 0.1709200094 | G109: 0.003635019209 | H109: 0.003635019209 | M109: 10.7 | N109: 0.1856666154 | O109: 0.1875474518 | P109: 0.001880836413 | Q109: 0.001880836413 | V109: 0.168075207 | W109: 0.1672849901 | X109: 0.1673351403 | Y109: 5.015015452e-05 | Z109: 5.015015452e-05 | AE109: 10.7 | AF109: 0.1856666154 | AG109: 0.1856984893 | AH109: 3.187393575e-05 | AI109: 3.187393575e-05
D110: 0.1696460033 | E110: 0.1688334447 | F110: 0.1724670559 | G110: 0.003633611199 | H110: 0.003633611199 | M110: 10.8 | N110: 0.1873813146 | O110: 0.1892687697 | P110: 0.00188745512 | Q110: 0.00188745512 | V110: 0.1696460033 | W110: 0.1688334447 | X110: 0.168883407 | Y110: 4.996233127e-05 | Z110: 4.996233127e-05 | AE110: 10.8 | AF110: 0.1873813146 | AG110: 0.1874126424 | AH110: 3.132782911e-05 | AI110: 3.132782911e-05
D111: 0.1712167996 | E111: 0.1703814827 | F111: 0.1740131703 | G111: 0.003631687607 | H111: 0.003631687607 | M111: 10.9 | N111: 0.189095443 | O111: 0.1909889317 | P111: 0.001893488672 | Q111: 0.001893488672 | V111: 0.1712167996 | W111: 0.1703814827 | X111: 0.1704312396 | Y111: 4.975688099e-05 | Z111: 4.975688099e-05 | AE111: 10.9 | AF111: 0.189095443 | AG111: 0.1891262149 | AH111: 3.07718961e-05 | AI111: 3.07718961e-05
D112: 0.1727875959 | E112: 0.1719291003 | F112: 0.1755583525 | G112: 0.003629252254 | H112: 0.003629252254 | M112: 11 | N112: 0.1908089954 | O112: 0.1927079377 | P112: 0.00189894229 | Q112: 0.00189894229 | V112: 0.1727875959 | W112: 0.1719291003 | X112: 0.1719786344 | Y112: 4.953411177e-05 | Z112: 4.953411177e-05 | AE112: 11 | AF112: 0.1908089954 | AG112: 0.1908392018 | AH112: 3.020647158e-05 | AI112: 3.020647158e-05
D113: 0.1743583923 | E113: 0.1734762936 | F113: 0.1771026026 | G113: 0.003626308957 | H113: 0.003626308957 | M113: 11.1 | N113: 0.1925219665 | O113: 0.1944257877 | P113: 0.001903821193 | Q113: 0.001903821193 | V113: 0.1743583923 | W113: 0.1734762936 | X113: 0.173525588 | Y113: 4.929433066e-05 | Z113: 4.929433066e-05 | AE113: 11.1 | AF113: 0.1925219665 | AG113: 0.1925515984 | AH113: 2.963188867e-05 | AI113: 2.963188867e-05
D114: 0.1759291886 | E114: 0.175023059 | F114: 0.1786459205 | G114: 0.003622861534 | H114: 0.003622861534 | M114: 11.2 | N114: 0.1942343512 | O114: 0.1961424818 | P114: 0.001908130601 | Q114: 0.001908130601 | V114: 0.1759291886 | W114: 0.175023059 | X114: 0.1750720968 | Y114: 4.903784367e-05 | Z114: 4.903784367e-05 | AE114: 11.2 | AF114: 0.1942343512 | AG114: 0.1942633997 | AH114: 2.90484787e-05 | AI114: 2.90484787e-05
D115: 0.1774999849 | E115: 0.1765693925 | F115: 0.1801883063 | G115: 0.003618913802 | H115: 0.003618913802 | M115: 11.3 | N115: 0.1959461442 | O115: 0.19785802 | P115: 0.001911875729 | Q115: 0.001911875729 | V115: 0.1774999849 | W115: 0.1765693925 | X115: 0.1766181574 | Y115: 4.876495575e-05 | Z115: 4.876495575e-05 | AE115: 11.3 | AF115: 0.1959461442 | AG115: 0.1959746008 | AH115: 2.845657125e-05 | AI115: 2.845657125e-05
D116: 0.1790707813 | E116: 0.1781152903 | F116: 0.1817297598 | G116: 0.003614469576 | H116: 0.003614469576 | M116: 11.4 | N116: 0.1976573404 | O116: 0.1995724022 | P116: 0.001915061791 | Q116: 0.001915061791 | V116: 0.1790707813 | W116: 0.1781152903 | X116: 0.1781637662 | Y116: 4.847597077e-05 | Z116: 4.847597077e-05 | AE116: 11.4 | AF116: 0.1976573404 | AG116: 0.1976851969 | AH116: 2.785649406e-05 | AI116: 2.785649406e-05
D117: 0.1806415776 | E117: 0.1796607486 | F117: 0.1832702813 | G117: 0.003609532671 | H117: 0.003609532671 | M117: 11.5 | N117: 0.1993679344 | O117: 0.2012856284 | P117: 0.001917694 | Q117: 0.001917694 | V117: 0.1806415776 | W117: 0.1796607486 | X117: 0.1797089198 | Y117: 4.817119155e-05 | Z117: 4.817119155e-05 | AE117: 11.5 | AF117: 0.1993679344 | AG117: 0.199395183 | AH117: 2.724857308e-05 | AI117: 2.724857308e-05
D118: 0.1822123739 | E118: 0.1812057636 | F118: 0.1848098705 | G118: 0.003604106899 | H118: 0.003604106899 | M118: 11.6 | N118: 0.2010779211 | O118: 0.2029976987 | P118: 0.001919777568 | Q118: 0.001919777568 | V118: 0.1822123739 | W118: 0.1812057636 | X118: 0.1812536145 | Y118: 4.785091982e-05 | Z118: 4.785091982e-05 | AE118: 11.6 | AF118: 0.2010779211 | AG118: 0.2011045543 | AH118: 2.663313241e-05 | AI118: 2.663313241e-05
D119: 0.1837831702 | E119: 0.1827503316 | F119: 0.1863485276 | G119: 0.003598196073 | H119: 0.003598196073 | M119: 11.7 | N119: 0.2027872954 | O119: 0.2047086131 | P119: 0.001921317702 | Q119: 0.001921317702 | V119: 0.1837831702 | W119: 0.1827503316 | X119: 0.182797847 | Y119: 4.75154562e-05 | Z119: 4.75154562e-05 | AE119: 11.7 | AF119: 0.2027872954 | AG119: 0.2028133059 | AH119: 2.60104943e-05 | AI119: 2.60104943e-05
D120: 0.1853539666 | E120: 0.1842944486 | F120: 0.1878862526 | G120: 0.003591804004 | H120: 0.003591804004 | M120: 11.8 | N120: 0.2044960518 | O120: 0.2064183715 | P120: 0.00192231961 | Q120: 0.00192231961 | V120: 0.1853539666 | W120: 0.1842944486 | X120: 0.1843416137 | Y120: 4.716510021e-05 | Z120: 4.716510021e-05 | AE120: 11.8 | AF120: 0.2044960518 | AG120: 0.2045214328 | AH120: 2.538097913e-05 | AI120: 2.538097913e-05
D121: 0.1869247629 | E121: 0.1858381108 | F121: 0.1894230453 | G121: 0.003584934502 | H121: 0.003584934502 | M121: 11.9 | N121: 0.2062041854 | O121: 0.2081269739 | P121: 0.001922788497 | Q121: 0.001922788497 | V121: 0.1869247629 | W121: 0.1858381108 | X121: 0.185884911 | Y121: 4.680015028e-05 | Z121: 4.680015028e-05 | AE121: 11.9 | AF121: 0.2062041854 | AG121: 0.2062289303 | AH121: 2.474490543e-05 | AI121: 2.474490543e-05
D122: 0.1884955592 | E122: 0.1873813146 | F122: 0.190958906 | G122: 0.003577591376 | H122: 0.003577591376 | M122: 12 | N122: 0.2079116908 | O122: 0.2098344204 | P122: 0.001922729566 | Q122: 0.001922729566 | V122: 0.1884955592 | W122: 0.1873813146 | X122: 0.1874277355 | Y122: 4.64209037e-05 | Z122: 4.64209037e-05 | AE122: 12 | AF122: 0.2079116908 | AG122: 0.2079357934 | AH122: 2.410258979e-05 | AI122: 2.410258979e-05
D123: 0.1900663555 | E123: 0.188924056 | F123: 0.1924938344 | G123: 0.003569778433 | H123: 0.003569778433 | M123: 12.1 | N123: 0.2096185629 | O123: 0.2115407109 | P123: 0.00192214802 | Q123: 0.00192214802 | V123: 0.1900663555 | W123: 0.188924056 | X123: 0.1889700836 | Y123: 4.602765663e-05 | Z123: 4.602765663e-05 | AE123: 12.1 | AF123: 0.2096185629 | AG123: 0.2096420173 | AH123: 2.345434691e-05 | AI123: 2.345434691e-05
D124: 0.1916371519 | E124: 0.1904663312 | F124: 0.1940278307 | G124: 0.00356149948 | H124: 0.00356149948 | M124: 12.2 | N124: 0.2113247965 | O124: 0.2132458455 | P124: 0.001921049056 | Q124: 0.001921049056 | V124: 0.1916371519 | W124: 0.1904663312 | X124: 0.1905119519 | Y124: 4.562070409e-05 | Z124: 4.562070409e-05 | AE124: 12.2 | AF124: 0.2113247965 | AG124: 0.2113475969 | AH124: 2.280048956e-05 | AI124: 2.280048956e-05
D125: 0.1932079482 | E125: 0.1920081365 | F125: 0.1955608948 | G125: 0.003552758322 | H125: 0.003552758322 | M125: 12.3 | N125: 0.2130303863 | O125: 0.2149498241 | P125: 0.001919437872 | Q125: 0.001919437872 | V125: 0.1932079482 | W125: 0.1920081365 | X125: 0.1920533369 | Y125: 4.520033994e-05 | Z125: 4.520033994e-05 | AE125: 12.3 | AF125: 0.2130303863 | AG125: 0.2130525276 | AH125: 2.214132855e-05 | AI125: 2.214132855e-05
D126: 0.1947787445 | E126: 0.1935494681 | F126: 0.1970930268 | G126: 0.003543558765 | H126: 0.003543558765 | M126: 12.4 | N126: 0.2147353272 | O126: 0.2166526468 | P126: 0.001917319665 | Q126: 0.001917319665 | V126: 0.1947787445 | W126: 0.1935494681 | X126: 0.1935942349 | Y126: 4.47668569e-05 | Z126: 4.47668569e-05 | AE126: 12.4 | AF126: 0.2147353272 | AG126: 0.2147568043 | AH126: 2.147717276e-05 | AI126: 2.147717276e-05
D127: 0.1963495408 | E127: 0.195090322 | F127: 0.1986242266 | G127: 0.003533904609 | H127: 0.003533904609 | M127: 12.5 | N127: 0.2164396139 | O127: 0.2183543136 | P127: 0.001914699628 | Q127: 0.001914699628 | V127: 0.1963495408 | W127: 0.195090322 | X127: 0.1951346426 | Y127: 4.432054652e-05 | Z127: 4.432054652e-05 | AE127: 12.5 | AF127: 0.2164396139 | AG127: 0.2164604223 | AH127: 2.080832905e-05 | AI127: 2.080832905e-05
D128: 0.1979203372 | E128: 0.1966306946 | F128: 0.2001544943 | G128: 0.003523799659 | H128: 0.003523799659 | M128: 12.6 | N128: 0.2181432414 | O128: 0.2200548243 | P128: 0.001911582952 | Q128: 0.001911582952 | V128: 0.1979203372 | W128: 0.1966306946 | X128: 0.1966745563 | Y128: 4.386169914e-05 | Z128: 4.386169914e-05 | AE128: 12.6 | AF128: 0.2181432414 | AG128: 0.2181633765 | AH128: 2.013510233e-05 | AI128: 2.013510233e-05
D129: 0.1994911335 | E129: 0.198170582 | F129: 0.2016838298 | G129: 0.003513247714 | H129: 0.003513247714 | M129: 12.7 | N129: 0.2198462044 | O129: 0.2217541792 | P129: 0.001907974826 | Q129: 0.001907974826 | V129: 0.1994911335 | W129: 0.198170582 | X129: 0.1982139727 | Y129: 4.339060396e-05 | Z129: 4.339060396e-05 | AE129: 12.7 | AF129: 0.2198462044 | AG129: 0.2198656621 | AH129: 1.945779547e-05 | AI129: 1.945779547e-05
D130: 0.2010619298 | E130: =SIN(x) -> 0.1997099805 | F130: =y0+dy*(x-x0)/dx+d2y*(x-x0)*(x-x0-dx)/2/dx^2 -> 0.2032122331 | G130: 0.003502252573 | H130: 0.003502252573 | M130: 12.8 | N130: =SIN(xx*PI()/180) -> 0.2215484976 | O130: =yy0+dyy*(xx-xx0)/dxx+d2yy*(xx-xx0)*(xx-xx0-dxx)/2/dxx^2 -> 0.2234523781 | P130: 0.001903880439 | Q130: 0.001903880439 | V130: 0.2010619298 | W130: =SIN(xxx) -> 0.1997099805 | X130: =yyy0+dyyy0*(xxx-xxx0)/dxxx+d2yyy0*(xxx-xxx0)*(xxx-xxx0-dxxx)/2/dxxx^2+d3yyy0*(xxx-xxx0)*(xxx-xxx0-dxxx)*(xxx-xxx0-2*dxxx)/6/dxxx^3 -> 0.1997528881 | Y130: 4.290754895e-05 | Z130: 4.290754895e-05 | AE130: 12.8 | AF130: =SIN(xxxx*PI()/180) -> 0.2215484976 | AG130: =yyyy0+dyyyy0*(xxxx-xxxx0)/dxxxx+d2yyyy0*(xxxx-xxxx0)*(xxxx-xxxx0-dxxxx)/2/dxxxx^2+d3yyyy0*(xxxx-xxxx0)*(xxxx-xxxx0-dxxxx)*(xxxx-xxxx0-2*dxxxx)/6/dxxxx^3 -> 0.2215672743 | AH130: 1.877670934e-05 | AI130: 1.877670934e-05
D131: =D130+dx0 -> 0.2026327262 | E131: 0.2012488862 | F131: 0.2047397043 | G131: =F131-E131 -> 0.003490818036 | H131: =ABS(G131) -> 0.003490818036 | M131: =M130+dxx0 -> 12.9 | N131: 0.223250116 | O131: 0.225149421 | P131: =O131-N131 -> 0.001899304975 | Q131: =ABS(P131) -> 0.001899304975 | V131: =V130+dx0 -> 0.2026327262 | W131: 0.2012488862 | X131: 0.201291299 | Y131: =X131-W131 -> 4.241282087e-05 | Z131: =ABS(Y131) -> 4.241282087e-05 | AE131: =AE130+dxxxx0 -> 12.9 | AF131: 0.223250116 | AG131: 0.2232682082 | AH131: =AG131-AF131 -> 1.809214274e-05 | AI131: =ABS(AH131) -> 1.809214274e-05
D132: 0.2042035225 | E132: 0.2027872954 | F132: 0.2062662433 | G132: 0.0034789479 | H132: 0.0034789479 | M132: 13 | N132: 0.2249510543 | O132: 0.226845308 | P132: 0.001894253619 | Q132: 0.001894253619 | V132: 0.2042035225 | W132: 0.2027872954 | X132: 0.2028292021 | Y132: 4.19067053e-05 | Z132: 4.19067053e-05 | AE132: 13 | AF132: 0.2249510543 | AG132: 0.2249684587 | AH132: 1.740439246e-05 | AI132: 1.740439246e-05
D133: 0.2057743188 | E133: 0.2043252041 | F133: 0.2077918501 | G133: 0.003466645959 | H133: 0.003466645959 | M133: 13.1 | N133: 0.2266513074 | O133: 0.228540039 | P133: 0.001888731551 | Q133: 0.001888731551 | V133: 0.2057743188 | W133: 0.2043252041 | X133: 0.2043665936 | Y133: 4.138948655e-05 | Z133: 4.138948655e-05 | AE133: 13.1 | AF133: 0.2266513074 | AG133: 0.2266680212 | AH133: 1.671375316e-05 | AI133: 1.671375316e-05
D134: 0.2073451151 | E134: 0.2058626088 | F134: 0.2093165248 | G134: 0.003453916009 | H134: 0.003453916009 | M134: 13.2 | N134: 0.2283508701 | O134: 0.2302336141 | P134: 0.001882743951 | Q134: 0.001882743951 | V134: 0.2073451151 | W134: 0.2058626088 | X134: 0.2059034702 | Y134: 4.086144772e-05 | Z134: 4.086144772e-05 | AE134: 13.2 | AF134: 0.2283508701 | AG134: 0.2283668906 | AH134: 1.602051746e-05 | AI134: 1.602051746e-05
D135: 0.2089159115 | E135: 0.2073995055 | F135: 0.2108402673 | G135: 0.003440761843 | H135: 0.003440761843 | M135: 13.3 | N135: 0.2300497372 | O135: 0.2319260332 | P135: 0.001876295996 | Q135: 0.001876295996 | V135: 0.2089159115 | W135: 0.2073995055 | X135: 0.2074398283 | Y135: 4.032287067e-05 | Z135: 4.032287067e-05 | AE135: 13.3 | AF135: 0.2300497372 | AG135: 0.2300650622 | AH135: 1.532497587e-05 | AI135: 1.532497587e-05
D136: 0.2104867078 | E136: 0.2089358904 | F136: 0.2123630777 | G136: 0.003427187254 | H136: 0.003427187254 | M136: 13.4 | N136: 0.2317479035 | O136: 0.2336172964 | P136: 0.001869392861 | Q136: 0.001869392861 | V136: 0.2104867078 | W136: 0.2089358904 | X136: 0.2089756644 | Y136: 3.9774036e-05 | Z136: 3.9774036e-05 | AE136: 13.4 | AF136: 0.2317479035 | AG136: 0.2317625309 | AH136: 1.462741675e-05 | AI136: 1.462741675e-05
D137: 0.2120575041 | E137: 0.2104717598 | F137: 0.2138849559 | G137: 0.003413196032 | H137: 0.003413196032 | M137: 13.5 | N137: 0.2334453639 | O137: 0.2353074036 | P137: 0.001862039719 | Q137: 0.001862039719 | V137: 0.2120575041 | W137: 0.2104717598 | X137: 0.210510975 | Y137: 3.921522303e-05 | Z137: 3.921522303e-05 | AE137: 13.5 | AF137: 0.2334453639 | AG137: 0.233459292 | AH137: 1.392812636e-05 | AI137: 1.392812636e-05
D138: 0.2136283004 | E138: 0.2120071099 | F138: 0.2154059019 | G138: 0.003398791967 | H138: 0.003398791967 | M138: 13.6 | N138: 0.2351421131 | O138: 0.2369963548 | P138: 0.00185424174 | Q138: 0.00185424174 | V138: 0.2136283004 | W138: 0.2120071099 | X138: 0.2120457566 | Y138: 3.864670985e-05 | Z138: 3.864670985e-05 | AE138: 13.6 | AF138: 0.2351421131 | AG138: 0.2351553405 | AH138: 1.322738879e-05 | AI138: 1.322738879e-05
D139: 0.2151990968 | E139: 0.2135419369 | F139: 0.2169259158 | G139: 0.003383978846 | H139: 0.003383978846 | M139: 13.7 | N139: 0.2368381461 | O139: 0.2386841502 | P139: 0.001846004094 | Q139: 0.001846004094 | V139: 0.2151990968 | W139: 0.2135419369 | X139: 0.2135800057 | Y139: 3.806877322e-05 | Z139: 3.806877322e-05 | AE139: 13.7 | AF139: 0.2368381461 | AG139: 0.2368506716 | AH139: 1.252548598e-05 | AI139: 1.252548598e-05
D140: 0.2167698931 | E140: 0.215076237 | F140: 0.2184449975 | G140: 0.003368760458 | H140: 0.003368760458 | M140: 13.8 | N140: 0.2385334576 | O140: 0.2403707895 | P140: 0.001837331946 | Q140: 0.001837331946 | V140: 0.2167698931 | W140: 0.215076237 | X140: 0.2151137187 | Y140: 3.748168864e-05 | Z140: 3.748168864e-05 | AE140: 13.8 | AF140: 0.2385334576 | AG140: 0.2385452803 | AH140: 1.182269767e-05 | AI140: 1.182269767e-05
D141: 0.2183406894 | E141: 0.2166100064 | F141: 0.219963147 | G141: 0.003353140588 | H141: 0.003353140588 | M141: 13.9 | N141: 0.2402280425 | O141: 0.2420562729 | P141: 0.001828230462 | Q141: 0.001828230462 | V141: 0.2183406894 | W141: 0.2166100064 | X141: 0.2166468922 | Y141: 3.688573031e-05 | Z141: 3.688573031e-05 | AE141: 13.9 | AF141: 0.2402280425 | AG141: 0.2402391618 | AH141: 1.111930141e-05 | AI141: 1.111930141e-05
D142: 0.2199114858 | E142: 0.2181432414 | F142: 0.2214803644 | G142: 0.00333712302 | H142: 0.00333712302 | M142: 14 | N142: 0.2419218956 | O142: 0.2437406004 | P142: 0.001818704802 | Q142: 0.001818704802 | V142: 0.2199114858 | W142: 0.2181432414 | X142: 0.2181795226 | Y142: 3.628117111e-05 | Z142: 3.628117111e-05 | AE142: 14 | AF142: 0.2419218956 | AG142: 0.2419323112 | AH142: 1.041557254e-05 | AI142: 1.041557254e-05
D143: 0.2214822821 | E143: 0.2196759381 | F143: 0.2229966496 | G143: 0.003320711538 | H143: 0.003320711538 | M143: 14.1 | N143: 0.2436150118 | O143: 0.2454237719 | P143: 0.001808760127 | Q143: 0.001808760127 | V143: 0.2214822821 | W143: 0.2196759381 | X143: 0.2197116064 | Y143: 3.566828259e-05 | Z143: 3.566828259e-05 | AE143: 14.1 | AF143: 0.2436150118 | AG143: 0.2436247236 | AH143: 9.711784173e-06 | AI143: 9.711784173e-06
D144: 0.2230530784 | E144: 0.2212080928 | F144: 0.2245120027 | G144: 0.003303909923 | H144: 0.003303909923 | M144: 14.2 | N144: 0.2453073859 | O144: 0.2471057875 | P144: 0.001798401594 | Q144: 0.001798401594 | V144: 0.2230530784 | W144: 0.2212080928 | X144: 0.2212431401 | Y144: 3.504733501e-05 | Z144: 3.504733501e-05 | AE144: 14.2 | AF144: 0.2453073859 | AG144: 0.2453163941 | AH144: 9.008207164e-06 | AI144: 9.008207164e-06
D145: 0.2246238747 | E145: 0.2227397017 | F145: 0.2260264236 | G145: 0.003286721955 | H145: 0.003286721955 | M145: 14.3 | N145: 0.2469990127 | O145: 0.2487866471 | P145: 0.001787634358 | Q145: 0.001787634358 | V145: 0.2246238747 | W145: 0.2227397017 | X145: 0.2227741203 | Y145: 3.441859725e-05 | Z145: 3.441859725e-05 | AE145: 14.3 | AF145: 0.2469990127 | AG145: 0.2470073178 | AH145: 8.305110119e-06 | AI145: 8.305110119e-06
D146: 0.2261946711 | E146: 0.2242707609 | F146: 0.2275399124 | G146: 0.003269151415 | H146: 0.003269151415 | M146: 14.4 | N146: 0.2486898872 | O146: 0.2504663507 | P146: 0.001776463573 | Q146: 0.001776463573 | V146: 0.2261946711 | W146: 0.2242707609 | X146: 0.2243045433 | Y146: 3.378233686e-05 | Z146: 3.378233686e-05 | AE146: 14.4 | AF146: 0.2486898872 | AG146: 0.2486974899 | AH146: 7.602759365e-06 | AI146: 7.602759365e-06
D147: 0.2277654674 | E147: 0.2258012669 | F147: 0.2290524689 | G147: 0.003251202078 | H147: 0.003251202078 | M147: 14.5 | N147: 0.2503800041 | O147: 0.2521448984 | P147: 0.001764894389 | Q147: 0.001764894389 | V147: 0.2277654674 | W147: 0.2258012669 | X147: 0.2258344057 | Y147: 3.313882005e-05 | Z147: 3.313882005e-05 | AE147: 14.5 | AF147: 0.2503800041 | AG147: 0.2503869055 | AH147: 6.901418936e-06 | AI147: 6.901418936e-06
D148: 0.2293362637 | E148: 0.2273312156 | F148: 0.2305640934 | G148: 0.003232877723 | H148: 0.003232877723 | M148: 14.6 | N148: 0.2520693582 | O148: 0.2538222902 | P148: 0.001752931954 | Q148: 0.001752931954 | V148: 0.2293362637 | W148: 0.2273312156 | X148: 0.227363704 | Y148: 3.248831165e-05 | Z148: 3.248831165e-05 | AE148: 14.6 | AF148: 0.2520693582 | AG148: 0.2520755596 | AH148: 6.201350559e-06 | AI148: 6.201350559e-06
D149: 0.23090706 | E149: 0.2288606035 | F149: 0.2320747856 | G149: 0.003214182123 | H149: 0.003214182123 | M149: 14.7 | N149: 0.2537579446 | O149: 0.255498526 | P149: 0.001740581416 | Q149: 0.001740581416 | V149: 0.23090706 | W149: 0.2288606035 | X149: 0.2288924346 | Y149: 3.18310751e-05 | Z149: 3.18310751e-05 | AE149: 14.7 | AF149: 0.2537579446 | AG149: 0.2537634474 | AH149: 5.502813637e-06 | AI149: 5.502813637e-06
D150: 0.2324778564 | E150: 0.2303894267 | F150: 0.2335845457 | G150: 0.003195119053 | H150: 0.003195119053 | M150: 14.8 | N150: 0.2554457579 | O150: 0.2571736059 | P150: 0.001727847916 | Q150: 0.001727847916 | V150: 0.2324778564 | W150: 0.2303894267 | X150: 0.230420594 | Y150: 3.116737249e-05 | Z150: 3.116737249e-05 | AE150: 14.8 | AF150: 0.2554457579 | AG150: 0.255450564 | AH150: 4.806065236e-06 | AI150: 4.806065236e-06
D151: 0.2340486527 | E151: 0.2319176814 | F151: 0.2350933737 | G151: 0.003175692284 | H151: 0.003175692284 | M151: 14.9 | N151: 0.2571327932 | O151: 0.2588475298 | P151: 0.001714736597 | Q151: 0.001714736597 | V151: 0.2340486527 | W151: 0.2319176814 | X151: 0.2319481788 | Y151: 3.049746449e-05 | Z151: 3.049746449e-05 | AE151: 14.9 | AF151: 0.2571327932 | AG151: 0.2571369045 | AH151: 4.111360066e-06 | AI151: 4.111360066e-06
D152: 0.235619449 | E152: 0.2334453639 | F152: 0.2366012694 | G152: 0.003155905588 | H152: 0.003155905588 | M152: 15 | N152: 0.2588190451 | O152: 0.2605202977 | P152: 0.001701252598 | Q152: 0.001701252598 | V152: 0.235619449 | W152: 0.2334453639 | X152: 0.2334751855 | Y152: 2.982161037e-05 | Z152: 2.982161037e-05 | AE152: 15 | AF152: 0.2588190451 | AG152: 0.2588224641 | AH152: 3.418950465e-06 | AI152: 3.418950465e-06
D153: 0.2371902453 | E153: 0.2349724703 | F153: 0.2381082331 | G153: 0.003135762734 | H153: 0.003135762734 | M153: 15.1 | N153: 0.2605045086 | O153: 0.2621919097 | P153: 0.001687401055 | Q153: 0.001687401055 | V153: 0.2371902453 | W153: 0.2349724703 | X153: 0.2350016104 | Y153: 2.9140068e-05 | Z153: 2.9140068e-05 | AE153: 15.1 | AF153: 0.2605045086 | AG153: 0.2605072377 | AH153: 2.729086387e-06 | AI153: 2.729086387e-06
D154: 0.2387610417 | E154: 0.236498997 | F154: 0.2396142645 | G154: 0.00311526749 | H154: 0.00311526749 | M154: 15.2 | N154: 0.2621891786 | O154: 0.2638623657 | P154: 0.001673187103 | Q154: 0.001673187103 | V154: 0.2387610417 | W154: 0.236498997 | X154: 0.2365274501 | Y154: 2.845309383e-05 | Z154: 2.845309383e-05 | AE154: 15.2 | AF154: 0.2621891786 | AG154: 0.2621912207 | AH154: 2.042015385e-06 | AI154: 2.042015385e-06
D155: 0.240331838 | E155: 0.2380249402 | F155: 0.2411193638 | G155: 0.003094423622 | H155: 0.003094423622 | M155: 15.3 | N155: 0.26387305 | O155: 0.2655316658 | P155: 0.001658615872 | Q155: 0.001658615872 | V155: 0.240331838 | W155: 0.2380249402 | X155: 0.2380527011 | Y155: 2.776094286e-05 | Z155: 2.776094286e-05 | AE155: 15.3 | AF155: 0.26387305 | AG155: 0.2638744079 | AH155: 1.357982594e-06 | AI155: 1.357982594e-06
D156: 0.2419026343 | E156: 0.239550296 | F156: 0.2426235309 | G156: 0.003073234896 | H156: 0.003073234896 | M156: 15.4 | N156: 0.2655561175 | O156: 0.26719981 | P156: 0.001643692494 | Q156: 0.001643692494 | V156: 0.2419026343 | W156: 0.239550296 | X156: 0.2395773599 | Y156: 2.706386867e-05 | Z156: 2.706386867e-05 | AE156: 15.4 | AF156: 0.2655561175 | AG156: 0.2655567947 | AH156: 6.772307141e-07 | AI156: 6.772307141e-07
D157: 0.2434734307 | E157: 0.2410750608 | F157: 0.2441267659 | G157: 0.003051705075 | H157: 0.003051705075 | M157: 15.5 | N157: 0.2672383761 | O157: 0.2688667982 | P157: 0.001628422094 | Q157: 0.001628422094 | V157: 0.2434734307 | W157: 0.2410750608 | X157: 0.241101423 | Y157: 2.636212338e-05 | Z157: 2.636212338e-05 | AE157: 15.5 | AF157: 0.2672383761 | AG157: 0.2672383761 | AH157: 0 | AI157: 0
D158: 0.245044227 | E158: 0.2425992308 | F158: 0.2456290687 | G158: 0.003029837921 | H158: 0.003029837921 | M158: 15.6 | N158: 0.2689198206 | O158: 0.2705326304 | P158: 0.001612809797 | Q158: 0.001612809797 | V158: 0.245044227 | W158: 0.2425992308 | X158: 0.2426248868 | Y158: 2.565595766e-05 | Z158: 2.565595766e-05 | AE158: 15.6 | AF158: 0.2689198206 | AG158: 0.2689191471 | AH158: -6.734717596e-07 | AI158: 6.734717596e-07
D159: 0.2466150233 | E159: 0.2441228022 | F159: 0.2471304394 | G159: 0.003007637196 | H159: 0.003007637196 | M159: 15.7 | N159: 0.270600446 | O159: 0.2721973067 | P159: 0.001596860726 | Q159: 0.001596860726 | V159: 0.2466150233 | W159: 0.2441228022 | X159: 0.2441477478 | Y159: 2.49456207e-05 | Z159: 2.49456207e-05 | AE159: 15.7 | AF159: 0.270600446 | AG159: 0.270599103 | AH159: -1.342949255e-06 | AI159: 1.342949255e-06
D160: 0.2481858196 | E160: 0.2456457712 | F160: 0.2486308778 | G160: 0.002985106657 | H160: 0.002985106657 | M160: 15.8 | N160: 0.272280247 | O160: 0.273860827 | P160: 0.001580579998 | Q160: 0.001580579998 | V160: 0.2481858196 | W160: 0.2456457712 | X160: 0.2456700026 | Y160: 2.423136022e-05 | Z160: 2.423136022e-05 | AE160: 15.8 | AF160: 0.272280247 | AG160: 0.2722782388 | AH160: -2.008199673e-06 | AI160: 2.008199673e-06
D161: 0.249756616 | E161: 0.2471681341 | F161: 0.2501303842 | G161: 0.002962250064 | H161: 0.002962250064 | M161: 15.9 | N161: 0.2739592187 | O161: 0.2755231914 | P161: 0.001563972733 | Q161: 0.001563972733 | V161: 0.249756616 | W161: 0.2471681341 | X161: 0.2471916475 | Y161: 2.351342246e-05 | Z161: 2.351342246e-05 | AE161: 15.9 | AF161: 0.2739592187 | AG161: 0.2739565497 | AH161: -2.668992709e-06 | AI161: 2.668992709e-06
D162: 0.2513274123 | E162: 0.2486898872 | F162: 0.2516289583 | G162: 0.002939071173 | H162: 0.002939071173 | M162: 16 | N162: 0.2756373558 | O162: 0.2771843999 | P162: 0.001547044043 | Q162: 0.001547044043 | V162: 0.2513274123 | W162: 0.2486898872 | X162: 0.2487126792 | Y162: 2.279205216e-05 | Z162: 2.279205216e-05 | AE162: 16 | AF162: 0.2756373558 | AG162: 0.2756340307 | AH162: -3.325100587e-06 | AI162: 3.325100587e-06
D163: 0.2528982086 | E163: 0.2502110266 | F163: 0.2531266003 | G163: 0.002915573738 | H163: 0.002915573738 | M163: 16.1 | N163: 0.2773146533 | O163: 0.2788444523 | P163: 0.001529799041 | Q163: 0.001529799041 | V163: 0.2528982086 | W163: 0.2502110266 | X163: 0.2502330941 | Y163: 2.206749254e-05 | Z163: 2.206749254e-05 | AE163: 16.1 | AF163: 0.2773146533 | AG163: 0.277310677 | AH163: -3.976298073e-06 | AI163: 3.976298073e-06
D164: 0.2544690049 | E164: 0.2517315487 | F164: 0.2546233102 | G164: 0.002891761512 | H164: 0.002891761512 | M164: 16.2 | N164: 0.278991106 | O164: 0.2805033489 | P164: 0.001512242836 | Q164: 0.001512242836 | V164: 0.2544690049 | W164: 0.2517315487 | X164: 0.2517528887 | Y164: 2.133998534e-05 | Z164: 2.133998534e-05 | AE164: 16.2 | AF164: 0.278991106 | AG164: 0.2789864837 | AH164: -4.62236249e-06 | AI164: 4.62236249e-06
D165: 0.2560398013 | E165: 0.2532514496 | F165: 0.2561190879 | G165: 0.002867638248 | H165: 0.002867638248 | M165: 16.3 | N165: 0.2806667089 | O165: 0.2821610895 | P165: 0.001494380534 | Q165: 0.001494380534 | V165: 0.2560398013 | W165: 0.2532514496 | X165: 0.2532720594 | Y165: 2.060977074e-05 | Z165: 2.060977074e-05 | AE165: 16.3 | AF165: 0.2806667089 | AG165: 0.2806614458 | AH165: -5.263073734e-06 | AI165: 5.263073734e-06
D166: 0.2576105976 | E166: 0.2547707257 | F166: 0.2576139334 | G166: 0.002843207695 | H166: 0.002843207695 | M166: 16.4 | N166: 0.2823414568 | O166: 0.2838176741 | P166: 0.001476217241 | Q166: 0.001476217241 | V166: 0.2576105976 | W166: 0.2547707257 | X166: 0.2547906028 | Y166: 1.98770874e-05 | Z166: 1.98770874e-05 | AE166: 16.4 | AF166: 0.2823414568 | AG166: 0.2823355586 | AH166: -5.898214291e-06 | AI166: 5.898214291e-06
D167: 0.2591813939 | E167: 0.2562893731 | F167: 0.2591078467 | G167: 0.002818473602 | H167: 0.002818473602 | M167: 16.5 | N167: 0.2840153447 | O167: 0.2854731028 | P167: 0.001457758058 | Q167: 0.001457758058 | V167: 0.2591813939 | W167: 0.2562893731 | X167: 0.2563085153 | Y167: 1.914217246e-05 | Z167: 1.914217246e-05 | AE167: 16.5 | AF167: 0.2840153447 | AG167: 0.2840088171 | AH167: -6.527569251e-06 | AI167: 6.527569251e-06
D168: 0.2607521902 | E168: 0.2578073882 | F168: 0.2606008279 | G168: 0.002793439716 | H168: 0.002793439716 | M168: 16.6 | N168: 0.2856883674 | O168: 0.2871273755 | P168: 0.001439008083 | Q168: 0.001439008083 | V168: 0.2607521902 | W168: 0.2578073882 | X168: 0.2578257935 | Y168: 1.840526149e-05 | Z168: 1.840526149e-05 | AE168: 16.6 | AF168: 0.2856883674 | AG168: 0.2856812165 | AH168: -7.150926322e-06 | AI168: 7.150926322e-06
D169: 0.2623229866 | E169: 0.2593247672 | F169: 0.262092877 | G169: 0.002768109783 | H169: 0.002768109783 | M169: 16.7 | N169: 0.2873605198 | O169: 0.2887804923 | P169: 0.001419972413 | Q169: 0.001419972413 | V169: 0.2623229866 | W169: 0.2593247672 | X169: 0.2593424338 | Y169: 1.766658848e-05 | Z169: 1.766658848e-05 | AE169: 16.7 | AF169: 0.2873605198 | AG169: 0.2873527518 | AH169: -7.768075849e-06 | AI169: 7.768075849e-06
D170: 0.2638937829 | E170: 0.2608415063 | F170: 0.2635839938 | G170: 0.002742487547 | H170: 0.002742487547 | M170: 16.8 | N170: 0.2890317969 | O170: 0.2904324531 | P170: 0.001400656142 | Q170: 0.001400656142 | V170: 0.2638937829 | W170: 0.2608415063 | X170: 0.2608584327 | Y170: 1.692638589e-05 | Z170: 1.692638589e-05 | AE170: 16.8 | AF170: 0.2890317969 | AG170: 0.2890234181 | AH170: -8.378810829e-06 | AI170: 8.378810829e-06
D171: 0.2654645792 | E171: 0.2623576018 | F171: 0.2650741785 | G171: 0.00271657675 | H171: 0.00271657675 | M171: 16.9 | N171: 0.2907021936 | O171: 0.292083258 | P171: 0.00138106436 | Q171: 0.00138106436 | V171: 0.2654645792 | W171: 0.2623576018 | X171: 0.2623737867 | Y171: 1.618488457e-05 | Z171: 1.618488457e-05 | AE171: 16.9 | AF171: 0.2907021936 | AG171: 0.2906932107 | AH171: -8.982926925e-06 | AI171: 8.982926925e-06
D172: 0.2670353756 | E172: 0.26387305 | F172: 0.2665634311 | G172: 0.002690381132 | H172: 0.002690381132 | M172: 17 | N172: 0.2923717047 | O172: 0.2937329069 | P172: 0.001361202157 | Q172: 0.001361202157 | V172: 0.2670353756 | W172: 0.26387305 | X172: 0.2638884923 | Y172: 1.544231381e-05 | Z172: 1.544231381e-05 | AE172: 17 | AF172: 0.2923717047 | AG172: 0.2923621245 | AH172: -9.580222479e-06 | AI172: 9.580222479e-06
D173: 0.2686061719 | E173: 0.2653878471 | F173: 0.2680517515 | G173: 0.002663904435 | H173: 0.002663904435 | M173: 17.1 | N173: 0.2940403252 | O173: 0.2953813998 | P173: 0.001341074616 | Q173: 0.001341074616 | V173: 0.2686061719 | W173: 0.2653878471 | X173: 0.265402546 | Y173: 1.469890127e-05 | Z173: 1.469890127e-05 | AE173: 17.1 | AF173: 0.2940403252 | AG173: 0.2940301547 | AH173: -1.017049853e-05 | AI173: 1.017049853e-05
D174: 0.2701769682 | E174: 0.2669019893 | F174: 0.2695391397 | G174: 0.002637150393 | H174: 0.002637150393 | M174: 17.2 | N174: 0.29570805 | O174: 0.2970287369 | P174: 0.001320686822 | Q174: 0.001320686822 | V174: 0.2701769682 | W174: 0.2669019893 | X174: 0.2669159442 | Y174: 1.395487304e-05 | Z174: 1.395487304e-05 | AE174: 17.2 | AF174: 0.29570805 | AG174: 0.2956972965 | AH174: -1.075355885e-05 | AI174: 1.075355885e-05
D175: 0.2717477645 | E175: 0.268415473 | F175: 0.2710255958 | G175: 0.002610122745 | H175: 0.002610122745 | M175: 17.3 | N175: 0.2973748741 | O175: 0.2986749179 | P175: 0.001300043855 | Q175: 0.001300043855 | V175: 0.2717477645 | W175: 0.268415473 | X175: 0.2684286835 | Y175: 1.321045355e-05 | Z175: 1.321045355e-05 | AE175: 17.3 | AF175: 0.2973748741 | AG175: 0.2973635449 | AH175: -1.13292099e-05 | AI175: 1.13292099e-05
D176: 0.2733185609 | E176: 0.2699282945 | F176: 0.2725111197 | G176: 0.002582825224 | H176: 0.002582825224 | M176: 17.4 | N176: 0.2990407923 | O176: 0.300319943 | P176: 0.001279150792 | Q176: 0.001279150792 | V176: 0.2733185609 | W176: 0.2699282945 | X176: 0.2699407603 | Y176: 1.246586565e-05 | Z176: 1.246586565e-05 | AE176: 17.4 | AF176: 0.2990407923 | AG176: 0.299028895 | AH176: -1.189726091e-05 | AI176: 1.189726091e-05
D177: 0.2748893572 | E177: 0.2714404499 | F177: 0.2739957114 | G177: 0.002555261563 | H177: 0.002555261563 | M177: 17.5 | N177: 0.3007057995 | O177: 0.3019638122 | P177: 0.001258012707 | Q177: 0.001258012707 | V177: 0.2748893572 | W177: 0.2714404499 | X177: 0.2714521712 | Y177: 1.172133052e-05 | Z177: 1.172133052e-05 | AE177: 17.5 | AF177: 0.3007057995 | AG177: 0.300693342 | AH177: -1.245752388e-05 | AI177: 1.245752388e-05
D178: 0.2764601535 | E178: 0.2729519355 | F178: 0.275479371 | G178: 0.002527435492 | H178: 0.002527435492 | M178: 17.6 | N178: 0.3023698908 | O178: 0.3036065254 | P178: 0.001236634674 | Q178: 0.001236634674 | V178: 0.2764601535 | W178: 0.2729519355 | X178: 0.2729629126 | Y178: 1.097706773e-05 | Z178: 1.097706773e-05 | AE178: 17.6 | AF178: 0.3023698908 | AG178: 0.3023568809 | AH178: -1.300981357e-05 | AI178: 1.300981357e-05
D179: 0.2780309498 | E179: 0.2744627477 | F179: 0.2769620984 | G179: 0.002499350742 | H179: 0.002499350742 | M179: 17.7 | N179: 0.3040330609 | O179: 0.3052480827 | P179: 0.001215021759 | Q179: 0.001215021759 | V179: 0.2780309498 | W179: 0.2744627477 | X179: 0.274472981 | Y179: 1.023329517e-05 | Z179: 1.023329517e-05 | AE179: 17.7 | AF179: 0.3040330609 | AG179: 0.304019507 | AH179: -1.355394752e-05 | AI179: 1.355394752e-05
D180: 0.2796017462 | E180: 0.2759728826 | F180: 0.2784438937 | G180: 0.002471011041 | H180: 0.002471011041 | M180: 17.8 | N180: 0.305695305 | O180: 0.306888484 | P180: 0.001193179031 | Q180: 0.001193179031 | V180: 0.2796017462 | W180: 0.2759728826 | X180: 0.2759823729 | Y180: 9.490229075e-06 | Z180: 9.490229075e-06 | AE180: 17.8 | AF180: 0.305695305 | AG180: 0.3056812152 | AH180: -1.408974609e-05 | AI180: 1.408974609e-05
D181: 0.2811725425 | E181: 0.2774823367 | F181: 0.2799247568 | G181: 0.002442420113 | H181: 0.002442420113 | M181: 17.9 | N181: 0.3073566178 | O181: 0.3085277294 | P181: 0.001171111553 | Q181: 0.001171111553 | V181: 0.2811725425 | W181: 0.2774823367 | X181: 0.2774910848 | Y181: 8.748084019e-06 | Z181: 8.748084019e-06 | AE181: 17.9 | AF181: 0.3073566178 | AG181: 0.3073420008 | AH181: -1.461703247e-05 | AI181: 1.461703247e-05
D182: 0.2827433388 | E182: 0.278991106 | F182: 0.2814046877 | G182: 0.002413581685 | H182: 0.002413581685 | M182: 18 | N182: 0.3090169944 | O182: 0.3101658188 | P182: 0.001148824384 | Q182: 0.001148824384 | V182: 0.2827433388 | W182: 0.278991106 | X182: 0.2789991131 | Y182: 8.007072887e-06 | Z182: 8.007072887e-06 | AE182: 18 | AF182: 0.3090169944 | AG182: 0.3090018587 | AH182: -1.513563266e-05 | AI182: 1.513563266e-05
D183: 0.2843141351 | E183: 0.280499187 | F183: 0.2828836865 | G183: 0.002384499478 | H183: 0.002384499478 | M183: 18.1 | N183: 0.3106764296 | O183: 0.3118027522 | P183: 0.001126322584 | Q183: 0.001126322584 | V183: 0.2843141351 | W183: 0.280499187 | X183: 0.2805064544 | Y183: 7.267406876e-06 | Z183: 7.267406876e-06 | AE183: 18.1 | AF183: 0.3106764296 | AG183: 0.3106607843 | AH183: -1.564537553e-05 | AI183: 1.564537553e-05
D184: 0.2858849315 | E184: 0.2820065759 | F184: 0.2843617531 | G184: 0.002355177213 | H184: 0.002355177213 | M184: 18.2 | N184: 0.3123349185 | O184: 0.3134385297 | P184: 0.001103611206 | Q184: 0.001103611206 | V184: 0.2858849315 | W184: 0.2820065759 | X184: 0.2820131052 | Y184: 6.529295485e-06 | Z184: 6.529295485e-06 | AE184: 18.2 | AF184: 0.3123349185 | AG184: 0.3123187724 | AH184: -1.614609283e-05 | AI184: 1.614609283e-05
D185: 0.2874557278 | E185: 0.283513269 | F185: 0.2858388876 | G185: 0.00232561861 | H185: 0.00232561861 | M185: 18.3 | N185: 0.313992456 | O185: 0.3150731513 | P185: 0.001080695304 | Q185: 0.001080695304 | V185: 0.2874557278 | W185: 0.283513269 | X185: 0.2835190619 | Y185: 5.792946507e-06 | Z185: 5.792946507e-06 | AE185: 18.3 | AF185: 0.313992456 | AG185: 0.3139758183 | AH185: -1.663761916e-05 | AI185: 1.663761916e-05
D186: 0.2890265241 | E186: 0.2850192625 | F186: 0.2873150899 | G186: 0.002295827387 | H186: 0.002295827387 | M186: 18.4 | N186: 0.3156490369 | O186: 0.3167066169 | P186: 0.001057579925 | Q186: 0.001057579925 | V186: 0.2890265241 | W186: 0.2850192625 | X186: 0.285024321 | Y186: 5.058566015e-06 | Z186: 5.058566015e-06 | AE186: 18.4 | AF186: 0.3156490369 | AG186: 0.3156319172 | AH186: -1.711979205e-05 | AI186: 1.711979205e-05
D187: 0.2905973205 | E187: 0.2865245527 | F187: 0.28879036 | G187: 0.002265807259 | H187: 0.002265807259 | M187: 18.5 | N187: 0.3173046564 | O187: 0.3183389265 | P187: 0.001034270117 | Q187: 0.001034270117 | V187: 0.2905973205 | W187: 0.2865245527 | X187: 0.2865288791 | Y187: 4.326358359e-06 | Z187: 4.326358359e-06 | AE187: 18.5 | AF187: 0.3173046564 | AG187: 0.317287064 | AH187: -1.759245191e-05 | AI187: 1.759245191e-05
D188: 0.2921681168 | E188: 0.288029136 | F188: 0.290264698 | G188: 0.002235561941 | H188: 0.002235561941 | M188: 18.6 | N188: 0.3189593093 | O188: 0.3199700802 | P188: 0.001010770922 | Q188: 0.001010770922 | V188: 0.2921681168 | W188: 0.288029136 | X188: 0.2880327325 | Y188: 3.596526151e-06 | Z188: 3.596526151e-06 | AE188: 18.6 | AF188: 0.3189593093 | AG188: 0.3189412539 | AH188: -1.805544212e-05 | AI188: 1.805544212e-05
D189: 0.2937389131 | E189: 0.2895330086 | F189: 0.2917381038 | G189: 0.002205095144 | H189: 0.002205095144 | M189: 18.7 | N189: 0.3206129906 | O189: 0.321600078 | P189: 0.0009870873814 | Q189: 0.0009870873814 | V189: 0.2937389131 | W189: 0.2895330086 | X189: 0.2895358779 | Y189: 2.869270262e-06 | Z189: 2.869270262e-06 | AE189: 18.7 | AF189: 0.3206129906 | AG189: 0.320594482 | AH189: -1.850860897e-05 | AI189: 1.850860897e-05
D190: 0.2953097094 | E190: 0.2910361668 | F190: 0.2932105774 | G190: 0.002174410581 | H190: 0.002174410581 | M190: 18.8 | N190: 0.3222656952 | O190: 0.3232289198 | P190: 0.0009632245321 | Q190: 0.0009632245321 | V190: 0.2953097094 | W190: 0.2910361668 | X190: 0.2910383116 | Y190: 2.144789805e-06 | Z190: 2.144789805e-06 | AE190: 18.8 | AF190: 0.3222656952 | AG190: 0.3222467434 | AH190: -1.895180172e-05 | AI190: 1.895180172e-05
D191: 0.2968805058 | E191: 0.2925386069 | F191: 0.2946821189 | G191: 0.002143511958 | H191: 0.002143511958 | M191: 18.9 | N191: 0.3239174182 | O191: 0.3248566056 | P191: 0.0009391874086 | Q191: 0.0009391874086 | V191: 0.2968805058 | W191: 0.2925386069 | X191: 0.2925400302 | Y191: 1.423282135e-06 | Z191: 1.423282135e-06 | AE191: 18.9 | AF191: 0.3239174182 | AG191: 0.3238980333 | AH191: -1.938487262e-05 | AI191: 1.938487262e-05
D192: 0.2984513021 | E192: 0.2940403252 | F192: 0.2961527282 | G192: 0.002112402984 | H192: 0.002112402984 | M192: 19 | N192: 0.3255681545 | O192: 0.3264831355 | P192: 0.0009149810423 | Q192: 0.0009149810423 | V192: 0.2984513021 | W192: 0.2940403252 | X192: 0.2940410302 | Y192: 7.049428318e-07 | Z192: 7.049428318e-07 | AE192: 19 | AF192: 0.3255681545 | AG192: 0.3255483468 | AH192: -1.980767688e-05 | AI192: 1.980767688e-05
D193: 0.3000220984 | E193: 0.295541318 | F193: 0.2976224054 | G193: 0.002081087364 | H193: 0.002081087364 | M193: 19.1 | N193: 0.327217899 | O193: 0.3281085094 | P193: 0.0008906104617 | Q193: 0.0008906104617 | V193: 0.3000220984 | W193: 0.295541318 | X193: 0.295541308 | Y193: -1.003430472e-08 | Z193: 1.003430472e-08 | AE193: 19.1 | AF193: 0.327217899 | AG193: 0.3271976789 | AH193: -2.022007275e-05 | AI193: 2.022007275e-05
D194: 0.3015928947 | E194: =SIN(x) -> 0.2970415816 | F194: =y0+dy*(x-x0)/dx+d2y*(x-x0)*(x-x0-dx)/2/dx^2 -> 0.2990911504 | G194: 0.002049568802 | H194: 0.002049568802 | M194: 19.2 | N194: =SIN(xx*PI()/180) -> 0.3288666467 | O194: =yy0+dyy*(xx-xx0)/dxx+d2yy*(xx-xx0)*(xx-xx0-dxx)/2/dxx^2 -> 0.3297327274 | P194: 0.0008660806921 | Q194: 0.0008660806921 | V194: 0.3015928947 | W194: =SIN(xxx) -> 0.2970415816 | X194: =yyy0+dyyy0*(xxx-xxx0)/dxxx+d2yyy0*(xxx-xxx0)*(xxx-xxx0-dxxx)/2/dxxx^2+d3yyy0*(xxx-xxx0)*(xxx-xxx0-dxxx)*(xxx-xxx0-2*dxxx)/6/dxxx^3 -> 0.2970408601 | Y194: -7.214572643e-07 | Z194: 7.214572643e-07 | AE194: 19.2 | AF194: =SIN(xxxx*PI()/180) -> 0.3288666467 | AG194: =yyyy0+dyyyy0*(xxxx-xxxx0)/dxxxx+d2yyyy0*(xxxx-xxxx0)*(xxxx-xxxx0-dxxxx)/2/dxxxx^2+d3yyyy0*(xxxx-xxxx0)*(xxxx-xxxx0-dxxxx)*(xxxx-xxxx0-2*dxxxx)/6/dxxxx^3 -> 0.3288460248 | AH194: -2.062192147e-05 | AI194: 2.062192147e-05
D195: =D194+dx0 -> 0.3031636911 | E195: 0.2985411122 | F195: 0.3005589632 | G195: =F195-E195 -> 0.002017850999 | H195: =ABS(G195) -> 0.002017850999 | M195: =M194+dxx0 -> 19.3 | N195: 0.3305143927 | O195: 0.3313557895 | P195: =O195-N195 -> 0.000841396756 | Q195: =ABS(P195) -> 0.000841396756 | V195: =V194+dx0 -> 0.3031636911 | W195: 0.2985411122 | X195: 0.2985396831 | Y195: =X195-W195 -> -1.429135837e-06 | Z195: =ABS(Y195) -> 1.429135837e-06 | AE195: =AE194+dxxxx0 -> 19.3 | AF195: 0.3305143927 | AG195: 0.3304933796 | AH195: =AG195-AF195 -> -2.101308735e-05 | AI195: =ABS(AH195) -> 2.101308735e-05
D196: 0.3047344874 | E196: 0.3000399062 | F196: 0.3020258439 | G196: 0.001985937655 | H196: 0.001985937655 | M196: 19.4 | N196: 0.3321611319 | O196: 0.3329776956 | P196: 0.0008165636727 | Q196: 0.0008165636727 | V196: 0.3047344874 | W196: 0.3000399062 | X196: 0.3000377734 | Y196: -2.13288162e-06 | Z196: 2.13288162e-06 | AE196: 19.4 | AF196: 0.3321611319 | AG196: 0.3321397384 | AH196: -2.139343771e-05 | AI196: 2.139343771e-05
D197: 0.3063052837 | E197: 0.3015379599 | F197: 0.3034917924 | G197: 0.001953832468 | H197: 0.001953832468 | M197: 19.5 | N197: 0.3338068592 | O197: 0.3345984457 | P197: 0.0007915864584 | Q197: 0.0007915864584 | V197: 0.3063052837 | W197: 0.3015379599 | X197: 0.3015351274 | Y197: -2.832508029e-06 | Z197: 2.832508029e-06 | AE197: 19.5 | AF197: 0.3338068592 | AG197: 0.3337850964 | AH197: -2.176284297e-05 | AI197: 2.176284297e-05
D198: 0.3078760801 | E198: 0.3030352696 | F198: 0.3049568088 | G198: 0.001921539135 | H198: 0.001921539135 | M198: 19.6 | N198: 0.3354515698 | O198: 0.3362180399 | P198: 0.0007664701263 | Q198: 0.0007664701263 | V198: 0.3078760801 | W198: 0.3030352696 | X198: 0.3030317418 | Y198: -3.527830306e-06 | Z198: 3.527830306e-06 | AE198: 19.6 | AF198: 0.3354515698 | AG198: 0.3354294486 | AH198: -2.212117662e-05 | AI198: 2.212117662e-05
D199: 0.3094468764 | E199: 0.3045318316 | F199: 0.306420893 | G199: 0.00188906135 | H199: 0.00188906135 | M199: 19.7 | N199: 0.3370952584 | O199: 0.3378364781 | P199: 0.0007412196864 | Q199: 0.0007412196864 | V199: 0.3094468764 | W199: 0.3045318316 | X199: 0.3045276129 | Y199: -4.218665529e-06 | Z199: 4.218665529e-06 | AE199: 19.7 | AF199: 0.3370952584 | AG199: 0.3370727901 | AH199: -2.246831525e-05 | AI199: 2.246831525e-05
D200: 0.3110176727 | E200: 0.3060276422 | F200: 0.307884045 | G200: 0.001856402806 | H200: 0.001856402806 | M200: 19.8 | N200: 0.3387379202 | O200: 0.3394537604 | P200: 0.0007158401457 | Q200: 0.0007158401457 | V200: 0.3110176727 | W200: 0.3060276422 | X200: 0.3060227374 | Y200: -4.90483262e-06 | Z200: 4.90483262e-06 | AE200: 19.8 | AF200: 0.3387379202 | AG200: 0.3387151161 | AH200: -2.280413856e-05 | AI200: 2.280413856e-05
... 302 more rows
